Workbook

Sheet リスト (hidden)
B2: リスト
B4: 公共工事等又は物品役務等の区分 | C4: 契約の相手方の区分 | D4: 一般競争入札・指名競争入札の別 | E4: 総合評価落札方式実施の別 | F4: 随意契約の区分 | G4: 随意契約の見直し | H4: 見直し実施年度 | I4: 一括調達形態
A5: 1 | B5: 公共工事等 | C5: 所管公益法人 | D5: 一般競争入札 | E5: 総合評価実施 | F5: 企画競争 | G5: 引き続き競争入札，企画競争又は公募を実施 | H5: 平成24年度 | I5: 近隣官署一括
A6: 2 | B6: 物品役務等 | C6: その他の公益法人 | D6: 指名競争入札 | E6: 価格競争 | F6: 公募 | G6: 事務・事業の中止 | H6: 平成25年度 | I6: 合同庁舎一括
A7: 3 | C7: 独立行政法人等 | F7: 不落・不調による随意契約 | G7: 競争入札に移行 | H7: 平成26年度以降 | I7: 管区一括
A8: 4 | C8: 特殊法人等 | F8: 契約の性質又は目的が競争を許さない場合 | G8: 企画競争に移行
A9: 5 | C9: 特定民間法人等 | F9: 緊急の必要により競争に付することができない場合 | G9: 公募に移行
A10: 6 | C10: その他の法人等 | F10: 競争に付することが不利と認められる場合 | G10: 随意契約によらざるを得ないもの
A11: 7 | F11: 特例政令に該当する場合
A12: 8 | F12: 秘密随意契約
A13: 9 | F13: 随意契約（その他）
A14: 10

Sheet 別表３
A1: 公共調達の適正化について（平成18年8月25日付財計第2017号）に基づく競争入札に係る情報の公表（物品役務等）
K2: 令和6年5月分
A3: No. | B3: 物品役務等の名称及び数量 | C3: 契約担当官等の氏名並びにその所属する部局の名称及び所在地 | D3: 契約を締結した日 | E3: 契約の相手方の商号又は名称及び住所 | F3: 法人番号 | G3: 一般競争入札・指名競争入札の別 (総合評価の実施) | H3: 予定価格 （円） （税込） | I3: 契約金額 （円） （税込） | J3: 落札率 (％) | K3: 備 考
A4: 1 | B4: 令和6年度帯広刑務所清掃業務委託契約 | C4: 支出負担行為担当官 帯広刑務所長 𠮷川 英生 （北海道帯広市別府町南13-33） | D4: 2024-05-01 | E4: 有限会社メンテック 北海道河東郡音更町中鈴蘭6-4-11 | F4: 7460102004128 | G4: 一般競争入札 | H4: 1478998 | I4: 1089000 | J4: =IFERROR(ROUNDDOWN(I4/H4,3),"-") -> 0.736
A5: 2 | B5: 令和6年度函館法務総合庁舎芝生及び樹木保守管理業務 | C5: 支出負担行為担当官 函館地方検察庁検事正 秋元 豊 （北海道函館市上新川町1-13） | D5: 2024-05-01 | E5: 株式会社田中潦風園 北海道函館市東山町144-50 | F5: 3440001001223 | G5: 一般競争入札 | H5: 1485000 | I5: 1155000 | J5: =IFERROR(ROUNDDOWN(I5/H5,3),"-") -> 0.777 | K5: 一括調達（北海道公安調査局）
A6: 3 | B6: 令和6年度広島拘置所医薬品等供給契約（64品目） | C6: 支出負担行為担当官 広島拘置所長 山本 洋一郎 （広島県広島市中区上八丁堀2-6） | D6: 2024-05-01 | E6: 広島県薬業株式会社 広島県広島市西区商工センター3-4-25 | F6: 6240001009655 | G6: 一般競争入札 | H6: 1685301 | I6: 1292776 | J6: =IFERROR(ROUNDDOWN(I6/H6,3),"-") -> 0.767 | K6: 単価契約
A7: 4 | B7: 令和6年度北海少年院における臨床検査業務委託契約 | C7: 支出負担行為担当官 北海少年院長 眞部 岳英 （北海道千歳市大和4-746-10） | D7: 2024-05-01 | E7: 株式会社ビー・エム・エル 北海道千歳市幸町3-15 | F7: 7011001019237 | G7: 一般競争入札 | H7: 1417578 | I7: 1417578 | J7: =IFERROR(ROUNDDOWN(I7/H7,3),"-") -> 1 | K7: 単価契約
A8: 5 | B8: 令和6年度被収容者用長期保存食料品供給契約（11品目） | C8: 支出負担行為担当官 千葉刑務所長 倉田 克己 （千葉県千葉市若葉区貝塚町192） | D8: 2024-05-01 | E8: 株式会社非常食研究所 大阪府堺市西区北条町1-28-19 | F8: 3120901001156 | G8: 一般競争入札 | H8: 2551176 | I8: 1677162 | J8: =IFERROR(ROUNDDOWN(I8/H8,3),"-") -> 0.657 | K8: 単価契約
A9: 6 | B9: 令和6年度広島拘置所医薬品等供給契約（101品目） | C9: 支出負担行為担当官 広島拘置所長 山本 洋一郎 （広島県広島市中区上八丁堀2-6） | D9: 2024-05-01 | E9: 株式会社中央薬品 神奈川県横浜市泉区和泉町1191-4 | F9: 6020001029840 | G9: 一般競争入札 | H9: 2352640 | I9: 1767193 | J9: =IFERROR(ROUNDDOWN(I9/H9,3),"-") -> 0.751 | K9: 単価契約
A10: 7 | B10: 令和6年度広島矯正管区管内の矯正施設で使用する医薬品等購入契約（11品目） | C10: 支出負担行為担当官 広島拘置所長 山本 洋一郎 （広島県広島市中区上八丁堀2-6） | D10: 2024-05-01 | E10: 株式会社中央薬品 神奈川県横浜市泉区和泉町1191-4 | F10: 6020001029840 | G10: 一般競争入札 | H10: 3870813 | I10: 1837835 | J10: =IFERROR(ROUNDDOWN(I10/H10,3),"-") -> 0.474 | K10: 単価契約 一括調達（鳥取刑務所、松江刑務所、岡山刑務所、広島刑務所、山口刑務所、岩国刑務所、広島拘置所）
A11: 8 | B11: 令和6年度被収容者用長期保存食料品供給契約（11品目） | C11: 支出負担行為担当官 千葉刑務所長 倉田 克己 （千葉県千葉市若葉区貝塚町192） | D11: 2024-05-01 | E11: 株式会社サイボウ 埼玉県さいたま市見沼区卸町2-6-15 | F11: 3030001003582 | G11: 一般競争入札 | H11: 2661135 | I11: 1879155 | J11: =IFERROR(ROUNDDOWN(I11/H11,3),"-") -> 0.706 | K11: 単価契約
A12: 9 | B12: 令和6年度松江刑務所清掃業務請負契約 | C12: 支出負担行為担当官 松江刑務所長 出雲路 朗 （島根県松江市西川津町67） | D12: 2024-05-01 | E12: 株式会社オークスコーポレーション 岡山県岡山市南区豊浜町9-24 | F12: 1260001008585 | G12: 一般競争入札 | H12: 2130165 | I12: 1940840 | J12: =IFERROR(ROUNDDOWN(I12/H12,3),"-") -> 0.911
A13: 10 | B13: 令和6年度長野地方検察庁・長野保護観察所・長野公安調査事務所職員健康診断業務委託契約 | C13: 支出負担行為担当官 長野地方検察庁検事正 北岡 克哉 （長野県長野市大字長野旭町1108） | D13: 2024-05-01 | E13: 一般財団法人全日本労働福祉協会長野県支部 長野県長野市大字大豆島中之島3223 | F13: 3010705000051 | G13: 一般競争入札 | H13: 2320224 | I13: 2270044 | J13: =IFERROR(ROUNDDOWN(I13/H13,3),"-") -> 0.978 | K13: 単価契約 一括調達（関東地方更生保護委員会、関東公安調査局）
A14: 11 | B14: 令和6年度水戸拘置支所自動車運行管理業務委託契約 | C14: 支出負担行為担当官 水戸刑務所長 原田 博 （茨城県ひたちなか市市毛847） | D14: 2024-05-01 | E14: キョウワプロテック株式会社 福島県福島市五月町3-20 | F14: 3380001000405 | G14: 一般競争入札 | H14: 3993000 | I14: 3412200 | J14: =IFERROR(ROUNDDOWN(I14/H14,3),"-") -> 0.854
A15: 12 | B15: 山口地方検察庁庁舎ほか5支部清掃業務委託契約 | C15: 支出負担行為担当官 山口地方検察庁検事正 原山 和高 （山口県山口市駅通り1-1-2） | D15: 2024-05-01 | E15: 株式会社サンライズ 東京都府中市緑町2-20-9 | F15: 7012401009752 | G15: 一般競争入札 | H15: 5659875 | I15: 4040223 | J15: =IFERROR(ROUNDDOWN(I15/H15,3),"-") -> 0.713 | K15: 一括調達（山口地方法務局）
A16: 13 | B16: 山口地方検察庁庁舎警備業務委託契約 | C16: 支出負担行為担当官 山口地方検察庁検事正 原山 和高 （山口県山口市駅通り1-1-2） | D16: 2024-05-01 | E16: 株式会社サンライズ 東京都府中市緑町2-20-9 | F16: 7012401009752 | G16: 一般競争入札 | H16: 10428188 | I16: 6575580 | J16: =IFERROR(ROUNDDOWN(I16/H16,3),"-") -> 0.63
A17: 14 | B17: 新潟地方法務総合庁舎警備及び受付案内業務委託契約 | C17: 支出負担行為担当官 新潟地方検察庁検事正 𠮷田 克久 （新潟県新潟市中央区西大畑町5191） | D17: 2024-05-01 | E17: 株式会社YARUSHIKA 新潟県新潟市中央区下所島2-8-14 | F17: 9110001008469 | G17: 一般競争入札 | H17: 9128900 | I17: 8760400 | J17: =IFERROR(ROUNDDOWN(I17/H17,3),"-") -> 0.959 | K17: 一括調達（新潟地方法務局、関東地方更生保護委員会、関東公安調査局）
A18: 15 | B18: 令和6年度千葉刑務所被収容者給食用弁当供給契約 | C18: 支出負担行為担当官 千葉刑務所長 倉田 克己 （千葉県千葉市若葉区貝塚町192） | D18: 2024-05-01 | E18: 株式会社西原屋 千葉県館山市北条1874 | F18: 1040001073890 | G18: 一般競争入札 | H18: 10444350 | I18: 10423035 | J18: =IFERROR(ROUNDDOWN(I18/H18,3),"-") -> 0.997 | K18: 単価契約
A19: 16 | B19: 令和6年度旭川刑務所熱源及び空調設備点検保守等業務 | C19: 支出負担行為担当官 旭川刑務所長 窪田 哲也 （北海道旭川市東鷹栖3-20-620） | D19: 2024-05-01 | E19: 弘友設備株式会社 北海道旭川市旭町2条5-12-198 | F19: 1450001001232 | G19: 一般競争入札 | H19: 14920237 | I19: 13640000 | J19: =IFERROR(ROUNDDOWN(I19/H19,3),"-") -> 0.914
A20: 17 | B20: 令和6年度東京拘置所冷温水機更新整備契約 | C20: 支出負担行為担当官 東京拘置所長 柴﨑 正文 （東京都葛飾区小菅1-35-1） | D20: 2024-05-01 | E20: 株式会社大岩マシナリー 東京都大田区大森南3-10-18 | F20: 8010701017490 | G20: 一般競争入札 | H20: 213950000 | I20: 200200000 | J20: =IFERROR(ROUNDDOWN(I20/H20,3),"-") -> 0.935
A21: 18 | B21: 令和6年度東京拘置所他矯正施設デジタル無線装置の更新契約 | C21: 支出負担行為担当官 東京拘置所長 柴﨑 正文 （東京都葛飾区小菅1-35-1） | D21: 2024-05-02 | E21: アイコム株式会社 大阪府大阪市平野区加美鞍作1-6-19 | F21: 1120001019349 | G21: 一般競争入札（総合評価落札方式） | H21: 1510772290 | I21: 605000000 | J21: =IFERROR(ROUNDDOWN(I21/H21,3),"-") -> 0.4
A22: 19 | B22: 出入国管理及び難民認定法等の改正に伴う様式用紙の翻訳業務 一式 | C22: 支出負担行為担当官 出入国在留管理庁次長 丸山 秀治 （東京都千代田区霞が関1-1-1） | D22: 2024-05-07 | E22: 株式会社Swimmy 東京都品川区東五反田1-6-3 | F22: 8010401148405 | G22: 一般競争入札 | H22: 10583157 | I22: 6001930 | J22: =IFERROR(ROUNDDOWN(I22/H22,3),"-") -> 0.567 | K22: 低入札価格調査実施
A23: 20 | B23: サーバ室等監視・録画機器等更新作業 一式 | C23: 支出負担行為担当官 法務省大臣官房会計課長 村松 秀樹 （東京都千代田区霞が関1-1-1） | D23: 2024-05-08 | E23: 日本アクア開発株式会社 東京都品川区東品川3-32-42 | F23: 7010701016717 | G23: 一般競争入札 | H23: 7058007 | I23: 4310790 | J23: =IFERROR(ROUNDDOWN(I23/H23,3),"-") -> 0.61
A24: 21 | B24: 令和6年度東京拘置所被収容者用ちり紙供給契約 | C24: 支出負担行為担当官 東京拘置所長 柴﨑 正文 （東京都葛飾区小菅1-35-1） | D24: 2024-05-08 | E24: 美保産業株式会社 東京都品川区西中延1-3-23 | F24: 5010701009482 | G24: 一般競争入札 | H24: 5992272 | I24: 5492916 | J24: =IFERROR(ROUNDDOWN(I24/H24,3),"-") -> 0.916 | K24: 単価契約
A25: 22 | B25: 受刑者の就労に対する動機付けのための指導受講候補者選定スクリーニングツール開発等業務の請負契約 一式 | C25: 支出負担行為担当官 法務省大臣官房会計課長 村松 秀樹 （東京都千代田区霞が関1-1-1） | D25: 2024-05-08 | E25: 株式会社富士通総研 東京都大田区新蒲田1-17-25 | F25: 8010401050783 | G25: 一般競争入札（総合評価落札方式） | H25: 24469907 | I25: 21637000 | J25: =IFERROR(ROUNDDOWN(I25/H25,3),"-") -> 0.884
A26: 23 | B26: 「相続登記の申請義務化」に関するパッケージ広報の企画・制作、放映等業務の請負契約 一式 | C26: 支出負担行為担当官 法務省大臣官房会計課長 村松 秀樹 （東京都千代田区霞が関1-1-1） | D26: 2024-05-08 | E26: 株式会社讀賣連合広告社 大阪府大阪市北区野崎町5-9 | F26: 3120001071843 | G26: 一般競争入札（総合評価落札方式） | H26: 123981858 | I26: 97955000 | J26: =IFERROR(ROUNDDOWN(I26/H26,3),"-") -> 0.79
A27: 24 | B27: 六法全書令和6年版等の供給（150部） | C27: 支出負担行為担当官 仙台地方検察庁検事正 石山 宏樹 （宮城県仙台市青葉区片平1-3-1） | D27: 2024-05-09 | E27: 株式会社紀伊國屋書店仙台営業所 宮城県仙台市青葉区一番町4-6-1 | F27: 4011101005131 | G27: 一般競争入札 | H27: 1827848 | I27: 1665037 | J27: =IFERROR(ROUNDDOWN(I27/H27,3),"-") -> 0.91 | K27: 一括調達（仙台高等検察庁）
A28: 25 | B28: 令和6年度福岡高等検察庁等職員健康診断業務委託契約 | C28: 支出負担行為担当官 福岡高等検察庁検事長 久木元 伸 （福岡県福岡市中央区六本松4-2-3） | D28: 2024-05-09 | E28: 一般財団法人医療情報健康財団 福岡県福岡市博多区店屋町4-15 | F28: 9290005013340 | G28: 一般競争入札 | H28: 6627775 | I28: 4667190 | J28: =IFERROR(ROUNDDOWN(I28/H28,3),"-") -> 0.704 | K28: 単価契約 一括調達（福岡地方検察庁、九州地方更生保護委員会）
A29: 26 | B29: 特定技能制度活用促進のための海外ジョブフェア及び国内マッチングイベント運営業務 一式 | C29: 支出負担行為担当官 出入国在留管理庁次長 丸山 秀治 （東京都千代田区霞が関1-1-1） | D29: 2024-05-09 | E29: 株式会社インジェスター 東京都千代田区五番町5-5 | F29: 5010401050919 | G29: 一般競争入札（総合評価落札方式） | H29: 84699140 | I29: 77000000 | J29: =IFERROR(ROUNDDOWN(I29/H29,3),"-") -> 0.909
A30: 27 | B30: 令和6年度横浜刑務所等被収容者用弁当給食契約 | C30: 支出負担行為担当官 横浜刑務所長 小嶌 一平 （神奈川県横浜港南区港南4-2-2） | D30: 2024-05-09 | E30: 株式会社一心屋 神奈川県川崎市川崎区塩浜2-18-17 | F30: 9020001071988 | G30: 一般競争入札 | H30: 164506560 | I30: 123379920 | J30: =IFERROR(ROUNDDOWN(I30/H30,3),"-") -> 0.75 | K30: 単価契約 一括調達（横浜刑務所、横浜拘置支所、横浜少年鑑別所）
A31: 28 | B31: 在留申請オンラインシステム及び出入国在留管理庁電子届出システムの更改に係る設計・開発等業務 一式 | C31: 支出負担行為担当官 出入国在留管理庁次長 丸山 秀治 （東京都千代田区霞が関1-1-1） | D31: 2024-05-09 | E31: 株式会社NTTデータ 東京都江東区豊洲3-3-3 | F31: 6010601062093 | G31: 一般競争入札（総合評価落札方式） | H31: 1430037752 | I31: 1138500000 | J31: =IFERROR(ROUNDDOWN(I31/H31,3),"-") -> 0.796 | K31: 国庫債務負担行為
A32: 29 | B32: 令和6年度熊本刑務所インク等に係る単価契約（61品目） | C32: 支出負担行為担当官 熊本刑務所長 大坪 誠 （熊本県熊本市中央区渡鹿7-12-1） | D32: 2024-05-10 | E32: 有限会社たかやま 熊本県水俣市桜井町3-4-25 | F32: 2330002027816 | G32: 一般競争入札 | H32: 4591300 | I32: 3531770 | J32: =IFERROR(ROUNDDOWN(I32/H32,3),"-") -> 0.769 | K32: 単価契約
A33: 30 | B33: 令和6年度青森地方検察庁ほか2官署事務用品（消耗品257品目）購入契約 | C33: 支出負担行為担当官 青森地方検察庁検事正 宮地 裕美 （青森県青森市長島1-3-25） | D33: 2024-05-10 | E33: 株式会社金入青森支店 青森県青森市第二問屋町3-3-34 | F33: 8420001005733 | G33: 一般競争入札 | H33: 4173035 | I33: 4003395 | J33: =IFERROR(ROUNDDOWN(I33/H33,3),"-") -> 0.959 | K33: 単価契約 一括調達（青森地方法務局、青森刑務所）
A34: 31 | B34: 出入国在留管理庁けん銃射撃訓練用弾丸の供給（24,000発） | C34: 支出負担行為担当官 出入国在留管理庁次長 丸山 秀治 （東京都千代田区霞が関1-1-1） | D34: 2024-05-10 | E34: 株式会社銀座銃砲店 東京都都中央区銀座6-13-7 | F34: 1010001041116 | G34: 一般競争入札 | H34: 4722278 | I34: 4435200 | J34: =IFERROR(ROUNDDOWN(I34/H34,3),"-") -> 0.939
A35: 32 | B35: 令和6年度東京拘置所他矯正施設入浴用石けん供給一式（194,830個） | C35: 支出負担行為担当官 東京拘置所長 柴﨑 正文 （東京都葛飾区小菅1-35-1） | D35: 2024-05-10 | E35: 美保産業株式会社 東京都品川区西中延1-3-23 | F35: 5010701009482 | G35: 一般競争入札 | H35: 11562650 | I35: 8358207 | J35: =IFERROR(ROUNDDOWN(I35/H35,3),"-") -> 0.722
A36: 33 | B36: 令和6年度東京拘置所他矯正施設練り歯磨き剤の供給一式（62,640個） | C36: 支出負担行為担当官 東京拘置所長 柴﨑 正文 （東京都葛飾区小菅1-35-1） | D36: 2024-05-10 | E36: 美保産業株式会社 東京都品川区西中延1-3-23 | F36: 5010701009482 | G36: 一般競争入札 | H36: 11964276 | I36: 9026424 | J36: =IFERROR(ROUNDDOWN(I36/H36,3),"-") -> 0.754
A37: 34 | B37: 令和6年度札幌刑務所環境整備業務請負（除草）契約 | C37: 支出負担行為担当官 札幌刑務所長 遊佐 篤史 （北海道札幌市東区東苗穂2-1-5-1） | D37: 2024-05-13 | E37: 株式会社シーマ 北海道札幌市西区西野3条4-10-20 | F37: 8430001030929 | G37: 一般競争入札 | H37: 1913129 | I37: 1375000 | J37: =IFERROR(ROUNDDOWN(I37/H37,3),"-") -> 0.718
A38: 35 | B38: 令和6年度名古屋刑務所医薬品等単価契約（61品目） | C38: 支出負担行為担当官 名古屋刑務所長 吉弘 基成 （愛知県みよし市ひばりヶ丘1-1） | D38: 2024-05-13 | E38: 株式会社西日本ジェネリック 岡山県岡山市北区田中153-101 | F38: 9260001023602 | G38: 一般競争入札 | H38: 2586453 | I38: 2371457 | J38: =IFERROR(ROUNDDOWN(I38/H38,3),"-") -> 0.916 | K38: 単価契約 一括調達（岡崎医療刑務所、愛知少年院）
A39: 36 | B39: 令和6年度名古屋刑務所医薬品等単価契約（6品目） | C39: 支出負担行為担当官 名古屋刑務所長 吉弘 基成 （愛知県みよし市ひばりヶ丘1-1） | D39: 2024-05-13 | E39: 株式会社健康管理協会 東京都渋谷区神南1-5-14 | F39: 5011201014147 | G39: 一般競争入札 | H39: 3231471 | I39: 2893157 | J39: =IFERROR(ROUNDDOWN(I39/H39,3),"-") -> 0.895 | K39: 単価契約 一括調達（岡崎医療刑務所、愛知少年院）
A40: 37 | B40: 法律図書・雑誌検索システム用端末機器の賃貸借 一式 | C40: 支出負担行為担当官 法務省大臣官房会計課長 村松 秀樹 （東京都千代田区霞が関1-1-1） | D40: 2024-05-13 | E40: リコージャパン株式会社 東京都大田区中馬込1-3-6 リコーリース株式会社 東京都千代田区紀尾井町4-1 | F40: 1010001110829 7010601037788 | G40: 一般競争入札 | H40: 3602522 | I40: 3592600 | J40: =IFERROR(ROUNDDOWN(I40/H40,3),"-") -> 0.997 | K40: 国庫債務負担行為
A41: 38 | B41: 執務机・椅子等の什器類の供給一式 | C41: 支出負担行為担当官 最高検察庁検事総長 甲斐 行夫 （東京都千代田区霞が関1-1-1） | D41: 2024-05-13 | E41: 株式会社サンポー 東京都港区新橋5-29-8 | F41: 1010401011569 | G41: 一般競争入札 | H41: 4078690 | I41: 3731200 | J41: =IFERROR(ROUNDDOWN(I41/H41,3),"-") -> 0.914
A42: 39 | B42: 令和6年度さいたま地方検察庁プリンタ用トナー等消耗品供給契約 | C42: 支出負担行為担当官 さいたま地方検察庁検事正 野下 智之 （埼玉県さいたま市浦和区高砂3-16-58） | D42: 2024-05-13 | E42: ジャパン・ビジネス・サプライ株式会社 東京都千代田区東神田1-4-1 | F42: 8010001081956 | G42: 一般競争入札 | H42: 6484563 | I42: 4024680 | J42: =IFERROR(ROUNDDOWN(I42/H42,3),"-") -> 0.62 | K42: 単価契約
A43: 40 | B43: 令和6年度名古屋刑務所医薬品等単価契約（22品目） | C43: 支出負担行為担当官 名古屋刑務所長 吉弘 基成 （愛知県みよし市ひばりヶ丘1-1） | D43: 2024-05-13 | E43: 株式会社ムトウ 北海道札幌市北区北十一条西4-1-15 | F43: 2430001016743 | G43: 一般競争入札 | H43: 4689289 | I43: 4201571 | J43: =IFERROR(ROUNDDOWN(I43/H43,3),"-") -> 0.895 | K43: 単価契約 一括調達（岡崎医療刑務所、愛知少年院）
A44: 41 | B44: 令和6年度北九州医療刑務所ボイラー性能検査等業務委託契約 | C44: 支出負担行為担当官 北九州医療刑務所長 澤田 貴裕 （福岡県北九州市小倉南区葉山町1-1-1） | D44: 2024-05-13 | E44: 呉共同機工株式会社 福岡県田川市大字糒824 | F44: 4290801016328 | G44: 一般競争入札 | H44: 4420405 | I44: 4400000 | J44: =IFERROR(ROUNDDOWN(I44/H44,3),"-") -> 0.995
A45: 42 | B45: 令和6年度名古屋刑務所医薬品等単価契約（53品目） | C45: 支出負担行為担当官 名古屋刑務所長 吉弘 基成 （愛知県みよし市ひばりヶ丘1-1） | D45: 2024-05-13 | E45: 株式会社ジェネスト 愛知県名古屋市守山区鳥神町88 | F45: 2180001000491 | G45: 一般競争入札 | H45: 6417908 | I45: 5872955 | J45: =IFERROR(ROUNDDOWN(I45/H45,3),"-") -> 0.915 | K45: 単価契約 一括調達（岡崎医療刑務所、愛知少年院）
A46: 43 | B46: 中分解能衛星画像データ分析等業務 | C46: 支出負担行為担当官 公安調査庁総務部長 霜田 仁 （東京都千代田区霞が関1-1-1） | D46: 2024-05-13 | E46: 株式会社アクセルスペース 東京都中央区日本橋本町3-3-3 | F46: 9010001119400 | G46: 一般競争入札 | H46: 6512000 | I46: 6490000 | J46: =IFERROR(ROUNDDOWN(I46/H46,3),"-") -> 0.996
A47: 44 | B47: 令和6年度名古屋刑務所医薬品等単価契約（230品目） | C47: 支出負担行為担当官 名古屋刑務所長 吉弘 基成 （愛知県みよし市ひばりヶ丘1-1） | D47: 2024-05-13 | E47: 株式会社中央薬品 神奈川県横浜市泉区和泉町1191-4 | F47: 6020001029840 | G47: 一般競争入札 | H47: 16420742 | I47: 14504049 | J47: =IFERROR(ROUNDDOWN(I47/H47,3),"-") -> 0.883 | K47: 単価契約 一括調達（岡崎医療刑務所、愛知少年院）
A48: 45 | B48: 令和6年度名古屋刑務所医薬品等単価契約（48品目） | C48: 支出負担行為担当官 名古屋刑務所長 吉弘 基成 （愛知県みよし市ひばりヶ丘1-1） | D48: 2024-05-13 | E48: 中北薬品株式会社 愛知県名古屋市中区丸の内3-11-9 | F48: 6180001039139 | G48: 一般競争入札 | H48: 24082839 | I48: 21978726 | J48: =IFERROR(ROUNDDOWN(I48/H48,3),"-") -> 0.912 | K48: 単価契約 一括調達（岡崎医療刑務所、愛知少年院）
A49: 46 | B49: 矯正施設の運営状況の把握・評価等に係る調査・分析等業務の請負契約 一式 | C49: 支出負担行為担当官 法務省大臣官房会計課長 村松 秀樹 （東京都千代田区霞が関1-1-1） | D49: 2024-05-13 | E49: アクセンチュア株式会社 東京都港区赤坂1-8-1 | F49: 7010401001556 | G49: 一般競争入札（総合評価落札方式） | H49: 42577443 | I49: 36699999 | J49: =IFERROR(ROUNDDOWN(I49/H49,3),"-") -> 0.861 | K49: 国庫債務負担行為
A50: 47 | B50: 令和6年度山形刑務所空調服調達契約 | C50: 支出負担行為担当官 山形刑務所長 土屋 文男 （山形県山形市あけぼの2-1-1） | D50: 2024-05-14 | E50: ヤスミツ産業株式会社 山形県山形市大字漆山483-3 | F50: 5390001002191 | G50: 一般競争入札 | H50: 1665400 | I50: 1353825 | J50: =IFERROR(ROUNDDOWN(I50/H50,3),"-") -> 0.812
A51: 48 | B51: 令和6年度和歌山刑務所医療用医薬品購入単価契約（25品目） | C51: 支出負担行為担当官 和歌山刑務所長 三木 直美 （和歌山県和歌山市加納383） | D51: 2024-05-14 | E51: アルフレッサ株式会社 東京都千代田区内神田1-12-1 | F51: 3010001027880 | G51: 一般競争入札 | H51: 3532329 | I51: 2859071 | J51: =IFERROR(ROUNDDOWN(I51/H51,3),"-") -> 0.809 | K51: 単価契約 一括調達（大阪刑務所、大阪拘置所、浪速少年院、交野女学院、和泉学園、奈良少年院、大阪少年鑑別所）
A52: 49 | B52: 令和6年度東京拘置所官用車（ミニマイクロバス）交換契約 | C52: 支出負担行為担当官 東京拘置所長 柴﨑 正文 （東京都葛飾区小菅1-35-1） | D52: 2024-05-14 | E52: 株式会社愛知自動車総合サービス 愛知県碧南市新道町4-4 | F52: 7180301017181 | G52: 一般競争入札（総合評価落札方式） | H52: 4885009 | I52: 3990079 | J52: =IFERROR(ROUNDDOWN(I52/H52,3),"-") -> 0.816
A53: 50 | B53: 令和6年度大阪少年鑑別所マイクロバス下取り交換契約 | C53: 支出負担行為担当官 大阪少年鑑別所長 西岡 潔子 （大阪府堺市堺区田出井町8-30） | D53: 2024-05-14 | E53: 株式会社愛知自動車総合サービス 愛知県碧南市新道町4-4 | F53: 7180301017181 | G53: 一般競争入札 | H53: 8962243 | I53: 6870340 | J53: =IFERROR(ROUNDDOWN(I53/H53,3),"-") -> 0.766
A54: 51 | B54: 離婚後の子の養育計画に関する調査研究業務 一式 | C54: 支出負担行為担当官 法務省大臣官房会計課長 村松 秀樹 （東京都千代田区霞が関1-1-1） | D54: 2024-05-14 | E54: 日本加除出版株式会社 東京都豊島区南長崎3-16-6 | F54: 8013301009172 | G54: 一般競争入札（総合評価落札方式） | H54: 7867057 | I54: 7755000 | J54: =IFERROR(ROUNDDOWN(I54/H54,3),"-") -> 0.985
A55: 52 | B55: 令和6年度和歌山刑務所医療用医薬品購入単価契約（13品目） | C55: 支出負担行為担当官 和歌山刑務所長 三木 直美 （和歌山県和歌山市加納383） | D55: 2024-05-14 | E55: 東邦薬品株式会社 東京都世田谷区代沢5-2-1 | F55: 5010901023507 | G55: 一般競争入札 | H55: 19216335.44 | I55: 15301820.7 | J55: =IFERROR(ROUNDDOWN(I55/H55,3),"-") -> 0.796 | K55: 単価契約 一括調達（大阪刑務所、大阪拘置所、浪速少年院、交野女学院、和泉学園、奈良少年院、大阪少年鑑別所）
A56: 53 | B56: 六法全書令和6年版1,370部の供給 一式 | C56: 支出負担行為担当官 法務省大臣官房会計課長 村松 秀樹 （東京都千代田区霞が関1-1-1） | D56: 2024-05-14 | E56: 株式会社紀伊國屋書店 東京都新宿区3-17-7 | F56: 4011101005131 | G56: 一般競争入札 | H56: 17289360 | I56: 15437347 | J56: =IFERROR(ROUNDDOWN(I56/H56,3),"-") -> 0.892 | K56: 共同調達（最高検察庁、東京高等検察庁、出入国在留管理庁、公安調査庁、公正取引委員会） 予定価格総額 17,782,600円 契約金額総額 15,877,752円
A57: 54 | B57: 令和6年度和歌山刑務所医療用医薬品購入単価契約（17品目） | C57: 支出負担行為担当官 和歌山刑務所長 三木 直美 （和歌山県和歌山市加納383） | D57: 2024-05-14 | E57: 株式会社スズケン 愛知県名古屋市東区東片端町8 | F57: 1180001017009 | G57: 一般競争入札 | H57: 34858656 | I57: 27390119 | J57: =IFERROR(ROUNDDOWN(I57/H57,3),"-") -> 0.785 | K57: 単価契約 一括調達（大阪刑務所、大阪拘置所、浪速少年院、交野女学院、和泉学園、奈良少年院、大阪少年鑑別所）
A58: 55 | B58: 令和6年度和歌山刑務所医療用医薬品購入単価契約（94品目） | C58: 支出負担行為担当官 和歌山刑務所長 三木 直美 （和歌山県和歌山市加納383） | D58: 2024-05-14 | E58: 株式会社メディセオ 東京都中央区京橋3-1-1 | F58: 5010001087238 | G58: 一般競争入札 | H58: 48592603.27 | I58: 31640626.9 | J58: =IFERROR(ROUNDDOWN(I58/H58,3),"-") -> 0.651 | K58: 単価契約 一括調達（大阪刑務所、大阪拘置所、浪速少年院、交野女学院、和泉学園、奈良少年院、大阪少年鑑別所）
A59: 56 | B59: 令和6年度和歌山刑務所医療用医薬品購入単価契約（292品目） | C59: 支出負担行為担当官 和歌山刑務所長 三木 直美 （和歌山県和歌山市加納383） | D59: 2024-05-14 | E59: 株式会社中央薬品 神奈川県横浜市泉区和泉町1191-4 | F59: 6020001029840 | G59: 一般競争入札 | H59: 55827733 | I59: 36802495 | J59: =IFERROR(ROUNDDOWN(I59/H59,3),"-") -> 0.659 | K59: 単価契約 一括調達（大阪刑務所、大阪拘置所、浪速少年院、交野女学院、和泉学園、奈良少年院、大阪少年鑑別所）
A60: 57 | B60: 戸籍情報連携システム機器等の導入、賃貸借及び保守（令和6年度増強分） 一式 | C60: 支出負担行為担当官 法務省大臣官房会計課長 村松 秀樹 （東京都千代田区霞が関1-1-1） | D60: 2024-05-14 | E60: 株式会社日立製作所 東京都品川区南大井6-23-1 | F60: 7010001008844 | G60: 一般競争入札（総合評価落札方式） | H60: 663732300 | I60: 663432000 | J60: =IFERROR(ROUNDDOWN(I60/H60,3),"-") -> 0.999 | K60: 国庫債務負担行為
A61: 58 | B61: 福岡地方検察庁大牟田支部移転業務契約 | C61: 支出負担行為担当官 福岡地方検察庁検事正 永幡 無二雄 （福岡県福岡市中央区六本松4-2-3） | D61: 2024-05-15 | E61: 株式会社サカイ引越センター 熊本県熊本市東区御領8-3-33 | F61: 6120101002720 | G61: 一般競争入札 | H61: 1923680 | I61: 1184700 | J61: =IFERROR(ROUNDDOWN(I61/H61,3),"-") -> 0.615
A62: 59 | B62: 令和6年度神奈川県内矯正施設コピー用紙供給契約 | C62: 支出負担行為担当官 横浜刑務所長 小嶌 一平 （神奈川県横浜港南区港南4-2-2） | D62: 2024-05-15 | E62: 有限会社小松電器 千葉県船橋市本町1-13-10 | F62: 2040002022152 | G62: 一般競争入札 | H62: 3976434 | I62: 3287020 | J62: =IFERROR(ROUNDDOWN(I62/H62,3),"-") -> 0.826 | K62: 一括調達（横浜刑務所、久里浜少年院、横浜少年鑑別所）
A63: 60 | B63: 令和6年度東京拘置所コピー用紙供給契約 | C63: 支出負担行為担当官 東京拘置所長 柴﨑 正文 （東京都葛飾区小菅1-35-1） | D63: 2024-05-15 | E63: 加賀ソルネット株式会社 東京都中央区八丁堀3-27-10 | F63: 1010001087332 | G63: 一般競争入札 | H63: 5417775 | I63: 5042070 | J63: =IFERROR(ROUNDDOWN(I63/H63,3),"-") -> 0.93 | K63: 単価契約 一括調達（東京少年鑑別所）
A64: 61 | B64: 令和6年度名古屋刑務所職員定期健康診断等業務委託契約 | C64: 支出負担行為担当官 名古屋刑務所長 吉弘 基成 （愛知県みよし市ひばりヶ丘1-1） | D64: 2024-05-15 | E64: 一般財団法人日本予防医学協会 東京都江東区毛利1-19-10 | F64: 6010605000116 | G64: 一般競争入札 | H64: 6254930 | I64: 5563360 | J64: =IFERROR(ROUNDDOWN(I64/H64,3),"-") -> 0.889 | K64: 単価契約
A65: 62 | B65: 令和6年度大阪矯正管区複合機購入等契約（3台） | C65: 支出負担行為担当官 大阪矯正管区長 日笠 和彦 （大阪府大阪市中央区大手前4-1-67） | D65: 2024-05-16 | E65: 株式会社No.1 東京都千代田区内幸町1-5-2 | F65: 8010001136248 | G65: 一般競争入札 | H65: 3909417 | I65: 1819141 | J65: =IFERROR(ROUNDDOWN(I65/H65,3),"-") -> 0.465 | K65: 単価契約 保守料を含む。 本体価格合計 759,000円 保守料 1,060,141円
A66: 63 | B66: 物品供給単価契約（文具類） | C66: 支出負担行為担当官 水戸地方検察庁検事正 竹内 寛志 （茨城県水戸市北見町1-1） | D66: 2024-05-16 | E66: 有限会社クノ商会 茨城県笠間市笠間1712-6 | F66: 2050002010107 | G66: 一般競争入札 | H66: 4429019 | I66: 3929410 | J66: =IFERROR(ROUNDDOWN(I66/H66,3),"-") -> 0.887 | K66: 単価契約 一括調達（水戸地方検察庁、水戸地方法務局）
A67: 64 | B67: 「子どもの人権SOSミニレター等」の梱包・発送業務の請負契約 一式 | C67: 支出負担行為担当官 法務省大臣官房会計課長 村松 秀樹 （東京都千代田区霞が関1-1-1） | D67: 2024-05-16 | E67: 日本物流開発株式会社 東京都板橋区東坂下2-7-7 | F67: 8011401012699 | G67: 一般競争入札 | H67: 19825918 | I67: 13750000 | J67: =IFERROR(ROUNDDOWN(I67/H67,3),"-") -> 0.693
A68: 65 | B68: 令和6年度徳島刑務所集団血液検査委託契約 | C68: 支出負担行為担当官 徳島刑務所長 菊地 康司 （徳島県徳島市入田町大久200-1） | D68: 2024-05-17 | E68: 株式会社四国中検 香川県高松市亀井町4-2 | F68: 3470001001922 | G68: 一般競争入札 | H68: 1235000 | I68: 1163250 | J68: =IFERROR(ROUNDDOWN(I68/H68,3),"-") -> 0.941 | K68: 単価契約
A69: 66 | B69: 令和6年度名古屋刑務所消耗品等供給単価契約（146品目） | C69: 支出負担行為担当官 名古屋刑務所長 吉弘 基成 （愛知県みよし市ひばりヶ丘1-1） | D69: 2024-05-17 | E69: 有限会社太陽商工 愛知県名古屋市瑞穂区宝田町1-2-3 | F69: 3180002009795 | G69: 一般競争入札 | H69: 1663200 | I69: 1619200 | J69: =IFERROR(ROUNDDOWN(I69/H69,3),"-") -> 0.973 | K69: 単価契約
A70: 67 | B70: プリンタトナー関係供給契約（32品目） | C70: 支出負担行為担当官 千葉地方検察庁検事正 長谷川 保 （千葉県千葉市中央区中央4-11-1） | D70: 2024-05-17 | E70: 株式会社井上企画 東京都町田市本町田3275-12 | F70: 3012301002860 | G70: 一般競争入札 | H70: 2168910 | I70: 1856140 | J70: =IFERROR(ROUNDDOWN(I70/H70,3),"-") -> 0.855 | K70: 再度公告入札 単価契約
A71: 68 | B71: 令和6年度事務用消耗品供給契約 | C71: 支出負担行為担当官 奈良地方検察庁検事正 石川 さおり （奈良県奈良市登大路町1-1） | D71: 2024-05-17 | E71: 株式会社正美堂 京都府京都市中京区四条通大宮西入壬生坊城町25 | F71: 7130001021125 | G71: 一般競争入札 | H71: 2350505 | I71: 1978527 | J71: =IFERROR(ROUNDDOWN(I71/H71,3),"-") -> 0.841 | K71: 単価契約 一括調達（近畿地方更生保護委員会）
A72: 69 | B72: 自動車交換購入契約（10人乗りワゴン車1台） | C72: 支出負担行為担当官 名古屋出入国在留管理局長 市村 信之 （愛知県名古屋市港区正保町5-18） | D72: 2024-05-17 | E72: 株式会社愛知自動車総合サービス 愛知県碧南市新道町4-4 | F72: 7180301017181 | G72: 一般競争入札 | H72: 4194467 | I72: 3231967 | J72: =IFERROR(ROUNDDOWN(I72/H72,3),"-") -> 0.77
A73: 70 | B73: 令和6年度広島刑務所医薬品単価契約（120品目） | C73: 支出負担行為担当官 広島刑務所長 宮本 良一 （広島県広島市中区吉島町13-114） | D73: 2024-05-17 | E73: TSアルフレッサ株式会社 広島県広島市西区商工センター1-2-19 | F73: 7240001005439 | G73: 一般競争入札 | H73: 5695867 | I73: 5082129 | J73: =IFERROR(ROUNDDOWN(I73/H73,3),"-") -> 0.892 | K73: 単価契約
A74: 71 | B74: 長期相続登記等未了土地解消作業委託契約（登記名義人200名分） | C74: 支出負担行為担当官 青森地方法務局長 草野 謙治 （青森県青森市長島1-3-5） | D74: 2024-05-17 | E74: 一般社団法人青森県公共嘱託登記司法書士協会 青森県青森市長島3-5-16 | F74: 2420005000455 | G74: 一般競争入札 | H74: 7226604 | I74: 7126785 | J74: =IFERROR(ROUNDDOWN(I74/H74,3),"-") -> 0.986
A75: 72 | B75: 令和6年度広島刑務所医薬品単価契約（201品目） | C75: 支出負担行為担当官 広島刑務所長 宮本 良一 （広島県広島市中区吉島町13-114） | D75: 2024-05-17 | E75: 株式会社エバルス 広島県広島市南区大州5-2-10 | F75: 9240001001527 | G75: 一般競争入札 | H75: 9335833 | I75: 8319586 | J75: =IFERROR(ROUNDDOWN(I75/H75,3),"-") -> 0.891 | K75: 単価契約
A76: 73 | B76: 六法全書等供給契約 | C76: 支出負担行為担当官 大阪高等検察庁検事長 上冨 敏伸 （大阪府大阪市福島区福島1-1-60） | D76: 2024-05-17 | E76: 株式会社丸善ジュンク堂書店 東京都中央区日本橋2-3-10 | F76: 9010001134416 | G76: 一般競争入札 | H76: 11720720 | I76: 8673332 | J76: =IFERROR(ROUNDDOWN(I76/H76,3),"-") -> 0.739 | K76: 一括調達（大阪高等検察庁、大阪地方検察庁、京都地方検察庁、神戸地方検察庁、奈良地方検察庁、大津地方検察庁、和歌山地方検察庁、法務総合研究所大阪支所）
A77: 74 | B77: 横浜地方検察庁庁用自動車賃貸借契約（3台） | C77: 支出負担行為担当官 横浜地方検察庁検事正 山田 利行 （神奈川県横浜市中区日本大通9） | D77: 2024-05-17 | E77: 三菱オートリース株式会社 東京都港区芝5-34-7 | F77: 2010401028728 | G77: 一般競争入札（総合評価落札方式） | H77: 13860000 | I77: 10358040 | J77: =IFERROR(ROUNDDOWN(I77/H77,3),"-") -> 0.747
A78: 75 | B78: バックアップメディア等の供給一式（2品目・85巻） | C78: 支出負担行為担当官 最高検察庁検事総長 甲斐 行夫 （東京都千代田区霞が関1-1-1） | D78: 2024-05-20 | E78: 株式会社インフィニティ 山口県岩国市藤生町3-1-5 | F78: 3250001013460 | G78: 一般競争入札 | H78: 2377980 | I78: 636900 | J78: =IFERROR(ROUNDDOWN(I78/H78,3),"-") -> 0.267
A79: 76 | B79: 令和6年度静岡刑務所通訳翻訳業務労働者派遣契約（スペイン語（ポルトガル語）） | C79: 支出負担行為担当官 静岡刑務所長 中瀬 光徳 （静岡県静岡市葵区東千代田3-1-1） | D79: 2024-05-20 | E79: 株式会社アーキ・ヴォイス 京都府京都市下京区元悪王子町37 | F79: 5130001026547 | G79: 一般競争入札 | H79: 1524600 | I79: 1245090 | J79: =IFERROR(ROUNDDOWN(I79/H79,3),"-") -> 0.816 | K79: 単価契約
A80: 77 | B80: 令和6年度静岡刑務所通訳翻訳業務労働者派遣契約（英語、中国語） | C80: 支出負担行為担当官 静岡刑務所長 中瀬 光徳 （静岡県静岡市葵区東千代田3-1-1） | D80: 2024-05-20 | E80: 株式会社ベルキャリエール 静岡県静岡市清水区相生町5-1 | F80: 2080001009089 | G80: 一般競争入札 | H80: 1321320 | I80: 1321320 | J80: =IFERROR(ROUNDDOWN(I80/H80,3),"-") -> 1 | K80: 単価契約
A81: 78 | B81: 令和6年度神戸刑務所被収容者健康診断業務委託契約 | C81: 支出負担行為担当官 神戸刑務所長 二階堂 亮治 （兵庫県明石市大久保町森田120） | D81: 2024-05-20 | E81: 医療法人愛悠会 大阪府門真市殿島町6-4 | F81: 5120005014994 | G81: 一般競争入札 | H81: 1775070 | I81: 1372030 | J81: =IFERROR(ROUNDDOWN(I81/H81,3),"-") -> 0.772 | K81: 単価契約
A82: 79 | B82: 令和6年度富山刑務所医薬品等の共同調達（5品目） | C82: 支出負担行為担当官 富山刑務所長 小阪 知晃 （富山県富山市西荒屋285-1） | D82: 2024-05-20 | E82: 中北薬品株式会社富山支店 富山県富山市上袋251 | F82: 6180001039139 | G82: 一般競争入札 | H82: 2861595 | I82: 2321209 | J82: =IFERROR(ROUNDDOWN(I82/H82,3),"-") -> 0.811 | K82: 単価契約 一括調達（金沢刑務所、福井刑務所）
A83: 80 | B83: 令和6年度京都拘置所医薬品購入契約（11品目） | C83: 支払負担行為担当官 京都拘置所長 松谷 憲一 （京都府京都市伏見区竹田向代町138） | D83: 2024-05-20 | E83: 株式会社スズケン 愛知県名古屋市東区東片端町8 | F83: 1180001017009 | G83: 一般競争入札 | H83: 2340888 | I83: 2340888 | J83: =IFERROR(ROUNDDOWN(I83/H83,3),"-") -> 1 | K83: 一括調達（京都刑務所、京都少年鑑別所）
A84: 81 | B84: 六法全書（令和6年版）等249冊供給契約 | C84: 支出負担行為担当官 横浜地方検察庁検事正 山田 利行 （神奈川県横浜市中区日本大通9） | D84: 2024-05-20 | E84: 株式会社丸善ジュンク堂書店 東京都中央区日本橋2-3-10 | F84: 9010001134416 | G84: 一般競争入札 | H84: 2884721 | I84: 2715160 | J84: =IFERROR(ROUNDDOWN(I84/H84,3),"-") -> 0.941
A85: 82 | B85: 令和6年度京都拘置所医薬品購入契約（1品目） | C85: 支払負担行為担当官 京都拘置所長 松谷 憲一 （京都府京都市伏見区竹田向代町138） | D85: 2024-05-20 | E85: 株式会社三笑堂 京都府京都市南区上鳥羽大物町68 | F85: 6130001010748 | G85: 一般競争入札 | H85: 3080000 | I85: 2860000 | J85: =IFERROR(ROUNDDOWN(I85/H85,3),"-") -> 0.928 | K85: 一括調達（京都刑務所、京都少年鑑別所）
A86: 83 | B86: 令和6年度富山刑務所医薬品等の共同調達（33品目） | C86: 支出負担行為担当官 富山刑務所長 小阪 知晃 （富山県富山市西荒屋285-1） | D86: 2024-05-20 | E86: 株式会社メディセオ富山支店 富山県射水市流通センター水戸田3-1-2 | F86: 5010001087238 | G86: 一般競争入札 | H86: 4555481 | I86: 3857928 | J86: =IFERROR(ROUNDDOWN(I86/H86,3),"-") -> 0.846 | K86: 単価契約 一括調達（金沢刑務所、福井刑務所）
A87: 84 | B87: 令和6年度京都拘置所医薬品購入契約（91品目） | C87: 支払負担行為担当官 京都拘置所長 松谷 憲一 （京都府京都市伏見区竹田向代町138） | D87: 2024-05-20 | E87: 株式会社大正堂 滋賀県甲賀市水口町3-38 | F87: 6160001005381 | G87: 一般競争入札 | H87: 4715829 | I87: 4380976 | J87: =IFERROR(ROUNDDOWN(I87/H87,3),"-") -> 0.928 | K87: 一括調達（京都刑務所、京都少年鑑別所）
A88: 85 | B88: 令和6年度定期健康診断等（ストレスチェックを含む）委託業務 | C88: 支出負担行為担当官 広島高等検察庁検事長 和田 雅樹 （広島県広島市中区上八丁堀2-31） | D88: 2024-05-20 | E88: 医療法人社団ヤマナ会 広島県東広島市西条町吉行2214 | F88: 3240005004003 | G88: 一般競争入札 | H88: 5749755 | I88: 5650095 | J88: =IFERROR(ROUNDDOWN(I88/H88,3),"-") -> 0.982 | K88: 単価契約 一括調達（広島地方検察庁、中国地方更生保護委員会、広島出入国在留管理局、中国公安調査局）
A89: 86 | B89: 令和6年度青森刑務所等職員健康診断業務委託契約 | C89: 支出負担行為担当官 青森刑務所長 村上 信司 （青森県青森市大字荒川字藤戸88） | D89: 2024-05-20 | E89: 一般財団法人全日本労働福祉協会 東京都品川区旗の台6-16-11 | F89: 3010705000051 | G89: 一般競争入札 | H89: 8841580 | I89: 7876880 | J89: =IFERROR(ROUNDDOWN(I89/H89,3),"-") -> 0.89 | K89: 単価契約 共同調達（青森地方検察庁、青森地方法務局、青森少年鑑別所、東北地方更生保護委員会、東北公安調査局、横浜植物防疫所塩釜支所、東北農政局、【青森刑務所】）
A90: 87 | B90: 令和6年度富山刑務所医薬品等の共同調達（139品目） | C90: 支出負担行為担当官 富山刑務所長 小阪 知晃 （富山県富山市西荒屋285-1） | D90: 2024-05-20 | E90: 株式会社中央薬品 神奈川県横浜市泉区和泉町1191-4 | F90: 6020001029840 | G90: 一般競争入札 | H90: 17092666 | I90: 10719791 | J90: =IFERROR(ROUNDDOWN(I90/H90,3),"-") -> 0.627 | K90: 単価契約 一括調達（金沢刑務所、福井刑務所）
A91: 88 | B91: 令和6年度京都拘置所医薬品購入契約（242品目） | C91: 支払負担行為担当官 京都拘置所長 松谷 憲一 （京都府京都市伏見区竹田向代町138） | D91: 2024-05-20 | E91: 株式会社中央薬品 神奈川県横浜市泉区和泉町1191-4 | F91: 6020001029840 | G91: 一般競争入札 | H91: 13818413 | I91: 11118975 | J91: =IFERROR(ROUNDDOWN(I91/H91,3),"-") -> 0.804 | K91: 一括調達（京都刑務所、京都少年鑑別所）
A92: 89 | B92: 令和6年度供託諸用紙、登記諸用紙等の製造業務の請負契約 一式 | C92: 支出負担行為担当官 法務省大臣官房会計課長 村松 秀樹 （東京都千代田区霞が関1-1-1） | D92: 2024-05-20 | E92: 株式会社DI Palette 新潟県新潟市中央区和合町2-4-18 | F92: 1110001002917 | G92: 一般競争入札 | H92: 13705980 | I92: 12927882 | J92: =IFERROR(ROUNDDOWN(I92/H92,3),"-") -> 0.943 | K92: 単価契約
A93: 90 | B93: 令和6年度京都拘置所医薬品購入契約（44品目） | C93: 支払負担行為担当官 京都拘置所長 松谷 憲一 （京都府京都市伏見区竹田向代町138） | D93: 2024-05-20 | E93: 株式会社メディセオ 東京都中央区八重洲2-7-15 | F93: 5010001087238 | G93: 一般競争入札 | H93: 15013283 | I93: 14726201 | J93: =IFERROR(ROUNDDOWN(I93/H93,3),"-") -> 0.98 | K93: 一括調達（京都刑務所、京都少年鑑別所）
A94: 91 | B94: 登記情報システム端末の更改及びOS・ブラウザ等の変更に伴う地図情報システムのアプリケーション改修業務 一式 | C94: 支出負担行為担当官 法務省大臣官房会計課長 村松 秀樹 （東京都千代田区霞が関1-1-1） | D94: 2024-05-20 | E94: 株式会社NTTデータ 東京都江東区豊洲3-3-3 | F94: 6010601062093 | G94: 一般競争入札（総合評価落札方式） | H94: 655809264 | I94: 655459200 | J94: =IFERROR(ROUNDDOWN(I94/H94,3),"-") -> 0.999 | K94: 国庫債務負担行為
A95: 92 | B95: 令和6年度東京拘置所医薬品等供給契約（6品目） | C95: 支出負担行為担当官 東京拘置所長 柴﨑 正文 （東京都葛飾区小菅1-35-1） | D95: 2024-05-21 | E95: 株式会社小平ケミカル 東京都東大和市向原1-5-11 | F95: 4012701009356 | G95: 一般競争入札 | H95: 2103640 | I95: 1385582 | J95: =IFERROR(ROUNDDOWN(I95/H95,3),"-") -> 0.658 | K95: 単価契約
A96: 93 | B96: 桑名法務総合庁舎ほか3庁舎空調設備保守業務委託契約 | C96: 支出負担行為担当官 津地方法務局長 坂 佳恭 （三重県津市丸之内26-8） | D96: 2024-05-21 | E96: 和幸産業株式会社 大阪府大阪市北区西天満3-14-16 | F96: 1120001072356 | G96: 一般競争入札 | H96: 2420000 | I96: 1617000 | J96: =IFERROR(ROUNDDOWN(I96/H96,3),"-") -> 0.668 | K96: 一括調達（津地方検察庁） 予定価格総額 2,420,000円 契約金額総額 1,617,000円
A97: 94 | B97: 令和6年度東京拘置所医薬品等供給契約（15品目） | C97: 支出負担行為担当官 東京拘置所長 柴﨑 正文 （東京都葛飾区小菅1-35-1） | D97: 2024-05-21 | E97: 北海道ジェネリック株式会社千葉支店 千葉県成田市並木町221-185 | F97: 4440001005256 | G97: 一般競争入札 | H97: 2270763 | I97: 1822425 | J97: =IFERROR(ROUNDDOWN(I97/H97,3),"-") -> 0.802 | K97: 単価契約
A98: 95 | B98: 2024-2025年版「出入国在留管理庁パンフレット」制作請負業務契約 一式 | C98: 支出負担行為担当官 出入国在留管理庁次長 丸山 秀治 （東京都千代田区霞が関1-1-1） | D98: 2024-05-21 | E98: 株式会社キタジマ 東京都墨田区立川2-11-7 | F98: 5010601023501 | G98: 一般競争入札（総合評価落札方式） | H98: 2547560 | I98: 2450360 | J98: =IFERROR(ROUNDDOWN(I98/H98,3),"-") -> 0.961
A99: 96 | B99: 令和6年度福島刑務所吸収式冷温水発生機保守契約 | C99: 支出負担行為担当官 福島刑務所長 髙野 洋一 （福島県福島市南沢又字上原1） | D99: 2024-05-21 | E99: 荏原冷熱システム株式会社 東京都大田区羽田旭町11-1 | F99: 1010801013446 | G99: 一般競争入札 | H99: 6373400 | I99: 3575000 | J99: =IFERROR(ROUNDDOWN(I99/H99,3),"-") -> 0.56
A100: 97 | B100: 令和6年度東京拘置所医薬品等供給契約（42品目） | C100: 支出負担行為担当官 東京拘置所長 柴﨑 正文 （東京都葛飾区小菅1-35-1） | D100: 2024-05-21 | E100: 株式会社保健科学東日本 埼玉県鴻巣市天神3-673 | F100: 3030001062331 | G100: 一般競争入札 | H100: 8232466 | I100: 5760163 | J100: =IFERROR(ROUNDDOWN(I100/H100,3),"-") -> 0.699 | K100: 単価契約
A101: 98 | B101: 令和6年度東京拘置所医薬品等供給契約（64品目） | C101: 支出負担行為担当官 東京拘置所長 柴﨑 正文 （東京都葛飾区小菅1-35-1） | D101: 2024-05-21 | E101: 株式会社京葉東和薬品 千葉県千葉市中央区村田町893-5 | F101: 5040001002144 | G101: 一般競争入札 | H101: 11897263 | I101: 9006083 | J101: =IFERROR(ROUNDDOWN(I101/H101,3),"-") -> 0.756 | K101: 単価契約
A102: 99 | B102: 令和6年度福岡刑務所で使用する公用車（リエッセ）の交換購入一式契約 | C102: 支出負担行為担当官 福岡刑務所長 竹内 徹 （福岡県糟屋郡宇美町障子岳南6-1-1） | D102: 2024-05-21 | E102: 株式会社愛知自動車総合サービス 愛知県碧南市新道町4-4 | F102: 7180301017181 | G102: 一般競争入札（総合評価落札方式） | H102: 14763430 | I102: 9857100 | J102: =IFERROR(ROUNDDOWN(I102/H102,3),"-") -> 0.667
A103: 100 | B103: 令和6年度東京拘置所医薬品等供給契約（150品目） | C103: 支出負担行為担当官 東京拘置所長 柴﨑 正文 （東京都葛飾区小菅1-35-1） | D103: 2024-05-21 | E103: 有限会社三和医科器械店 東京都足立区千住5-15-20 | F103: 4011802012863 | G103: 一般競争入札 | H103: 12126391 | I103: 9908560 | J103: =IFERROR(ROUNDDOWN(I103/H103,3),"-") -> 0.817 | K103: 単価契約
A104: 101 | B104: 令和6年度東京拘置所医薬品等供給契約（128品目） | C104: 支出負担行為担当官 東京拘置所長 柴﨑 正文 （東京都葛飾区小菅1-35-1） | D104: 2024-05-21 | E104: 株式会社中央薬品 神奈川県横浜市泉区和泉町1191-4 | F104: 6020001029840 | G104: 一般競争入札 | H104: 12809583 | I104: 11445731 | J104: =IFERROR(ROUNDDOWN(I104/H104,3),"-") -> 0.893 | K104: 単価契約
A105: 102 | B105: 令和6年度東京拘置所医薬品等供給契約（6品目） | C105: 支出負担行為担当官 東京拘置所長 柴﨑 正文 （東京都葛飾区小菅1-35-1） | D105: 2024-05-21 | E105: 株式会社新星医薬商事 千葉県千葉市中央区都町8-5-27 | F105: 7040001003082 | G105: 一般競争入札 | H105: 14905000 | I105: 11880000 | J105: =IFERROR(ROUNDDOWN(I105/H105,3),"-") -> 0.797 | K105: 単価契約
A106: 103 | B106: 令和6年度水戸拘置支所官用車（マイクロバス）更新整備契約 | C106: 支出負担行為担当官 水戸刑務所長 原田 博 （茨城県ひたちなか市市毛847） | D106: 2024-05-21 | E106: 三菱ふそうトラック・バス株式会社 神奈川県川崎市中原区大倉町10 | F106: 7020001078696 | G106: 一般競争入札（総合評価落札方式） | H106: 12503630 | I106: 12482860 | J106: =IFERROR(ROUNDDOWN(I106/H106,3),"-") -> 0.998
A107: 104 | B107: 基盤システム端末用ノートパソコン等の供給 一式 | C107: 支出負担行為担当官 法務省大臣官房会計課長 村松 秀樹 （東京都千代田区霞が関1-1-1） | D107: 2024-05-21 | E107: 株式会社ニューテック 東京都港区浜松町2-7-19 | F107: 4010401039731 | G107: 一般競争入札 | H107: 19324998 | I107: 14691600 | J107: =IFERROR(ROUNDDOWN(I107/H107,3),"-") -> 0.76
A108: 105 | B108: 令和6年度東京拘置所医薬品等供給契約（11品目） | C108: 支出負担行為担当官 東京拘置所長 柴﨑 正文 （東京都葛飾区小菅1-35-1） | D108: 2024-05-21 | E108: 株式会社スズケン葛飾支店 東京都葛飾区西新小岩4-1-13 | F108: 1180001017009 | G108: 一般競争入札 | H108: 20874091 | I108: 20243336 | J108: =IFERROR(ROUNDDOWN(I108/H108,3),"-") -> 0.969 | K108: 単価契約
A109: 106 | B109: 令和6年度月形刑務所非常電鈴設備更新 | C109: 支出負担行為担当官 月形刑務所長 小松 一俊 （北海道樺戸郡月形町1011） | D109: 2024-05-21 | E109: ニッタン株式会社 東京都渋谷区笹塚1-54-5 | F109: 3011001017236 | G109: 一般競争入札 | H109: 24652100 | I109: 21945000 | J109: =IFERROR(ROUNDDOWN(I109/H109,3),"-") -> 0.89
A110: 107 | B110: 令和6年度東京拘置所医薬品等供給契約（136品目） | C110: 支出負担行為担当官 東京拘置所長 柴﨑 正文 （東京都葛飾区小菅1-35-1） | D110: 2024-05-21 | E110: 株式会社メディセオ足立・葛飾支店 埼玉県三郷市上彦川戸852-1 | F110: 5010001087238 | G110: 一般競争入札 | H110: 31872260 | I110: 29471761 | J110: =IFERROR(ROUNDDOWN(I110/H110,3),"-") -> 0.924 | K110: 単価契約
A111: 108 | B111: 令和6年度東京拘置所医薬品等供給契約（213品目） | C111: 支出負担行為担当官 東京拘置所長 柴﨑 正文 （東京都葛飾区小菅1-35-1） | D111: 2024-05-21 | E111: アルフレッサ株式会社葛飾支店 東京都江戸川区平井7-5-32 | F111: 3010001027880 | G111: 一般競争入札 | H111: 39059054 | I111: 37681014 | J111: =IFERROR(ROUNDDOWN(I111/H111,3),"-") -> 0.964 | K111: 単価契約
A112: 109 | B112: 長期相続登記等未了土地解消作業（登記名義人200名分）の委託一式 | C112: 支出負担行為担当官 盛岡地方法務局長 佐々木 賢 （岩手県盛岡市盛岡駅西通1-9-15） | D112: 2024-05-22 | E112: 一般社団法人岩手県公共嘱託登記司法書士協会 岩手県盛岡市本町通2-12-18 | F112: 6400005005312 | G112: 一般競争入札 | H112: 7226604 | I112: 4950000 | J112: =IFERROR(ROUNDDOWN(I112/H112,3),"-") -> 0.684
A113: 110 | B113: 令和6年度府中刑務所6月期ボイラー用白灯油供給契約 | C113: 支出負担行為担当官 府中刑務所長 八代 宏幸 （東京都府中市晴見町4-10） | D113: 2024-05-22 | E113: シナネン株式会社 東京都港区三田3-5-27 | F113: 2220001003309 | G113: 一般競争入札 | H113: 6001600 | I113: 5681060 | J113: =IFERROR(ROUNDDOWN(I113/H113,3),"-") -> 0.946 | K113: 単価契約
A114: 111 | B114: 令和6年司法試験予備試験用法文印刷製本等業務の請負契約 一式 | C114: 支出負担行為担当官 法務省大臣官房会計課長 村松 秀樹 （東京都千代田区霞が関1-1-1） | D114: 2024-05-22 | E114: 第一法規株式会社 東京都港区南青山2-11-17 | F114: 7010401017486 | G114: 一般競争入札 | H114: 10228570 | I114: 7467020 | J114: =IFERROR(ROUNDDOWN(I114/H114,3),"-") -> 0.73 | K114: 単価契約
A115: 112 | B115: 令和6年度横浜刑務所等被収容者用弁当給食（アレルギー等）単価契約 | C115: 支出負担行為担当官 横浜刑務所長 小嶌 一平 （神奈川県横浜港南区港南4-2-2） | D115: 2024-05-22 | E115: 株式会社一心屋 神奈川県川崎市川崎区塩浜2-18-17 | F115: 9020001071988 | G115: 一般競争入札 | H115: 9684072 | I115: 7937136 | J115: =IFERROR(ROUNDDOWN(I115/H115,3),"-") -> 0.819 | K115: 単価契約 一括調達（横浜刑務所、横浜少年鑑別所）
A116: 113 | B116: 令和6年度被収容者胸部デジタルレントゲン撮影業務委任契約 | C116: 支出負担行為担当官 川越少年刑務所長 北川 統之 （埼玉県川越市南大塚6-40-1） | D116: 2024-05-23 | E116: 医療法人社団日健会 東京都江東区亀戸6-56-15 | F116: 4010605000547 | G116: 一般競争入札 | H116: 1121400 | I116: 822360 | J116: =IFERROR(ROUNDDOWN(I116/H116,3),"-") -> 0.733 | K116: 単価契約
A117: 114 | B117: 令和6年度福岡刑務所厳原拘置支所非常用発電機部品等交換修理契約 | C117: 支出負担行為担当官 福岡刑務所長 竹内 徹 （福岡県糟屋郡宇美町障子岳南6-1-1） | D117: 2024-05-23 | E117: ホマレ電業株式会社 長崎県対馬市厳原町桟原40-2 | F117: 1310001010767 | G117: 一般競争入札 | H117: 1650000 | I117: 1595000 | J117: =IFERROR(ROUNDDOWN(I117/H117,3),"-") -> 0.966
A118: 115 | B118: 令和6年度旧神奈川医療少年院環境整備業務請負契約 | C118: 支出負担行為担当官 東日本成人矯正医療センター長 奥村 雄介 （東京都昭島市もくせいの杜2-1-9） | D118: 2024-05-23 | E118: 株式会社五嶋造園 東京都八王子市谷野町331 | F118: 7012801009922 | G118: 一般競争入札 | H118: 3297800 | I118: 1650000 | J118: =IFERROR(ROUNDDOWN(I118/H118,3),"-") -> 0.5
A119: 116 | B119: 令和6年度大阪拘置所日用品等購入単価契約（11品目） | C119: 支出負担行為担当官 大阪拘置所長 和田 浩史 （大阪府大阪市都島区友渕町1-2-5） | D119: 2024-05-23 | E119: 株式会社山口商会 大阪府茨木市小柳町13-23 | F119: 8120901002273 | G119: 一般競争入札 | H119: 3080330 | I119: 2061763 | J119: =IFERROR(ROUNDDOWN(I119/H119,3),"-") -> 0.669 | K119: 単価契約
A120: 117 | B120: 札幌出入国在留管理局釧路港出張所における官用自動車1台に係る交換購入契約 | C120: 支出負担行為担当官 札幌出入国在留管理局長 礒部 哲郎 （北海道札幌市中央区大通西12） | D120: 2024-05-23 | E120: 札幌トヨタ自動車株式会社 北海道札幌市中央区北1条西7-3-8 | F120: 2430001020191 | G120: 一般競争入札（総合評価落札方式） | H120: 3160180 | I120: 3011415 | J120: =IFERROR(ROUNDDOWN(I120/H120,3),"-") -> 0.952
A121: 118 | B121: 千葉第2地方合同庁舎非常用蓄電池更新業務請負契約 | C121: 支出負担行為担当官 千葉地方検察庁検事正 長谷川 保 （千葉県千葉市中央区中央4-11-1） | D121: 2024-05-23 | E121: 株式会社ホマレ電池 東京都千代田区神田佐久間町3-21 | F121: 4010001029158 | G121: 一般競争入札 | H121: 3626125 | I121: 3109722 | J121: =IFERROR(ROUNDDOWN(I121/H121,3),"-") -> 0.857 | K121: 共同調達（千葉労働局、千葉労働基準監督署、千葉防衛事務所、千葉地方法務局） 予定価格総額 6,798,135円 契約金額総額 5,830,000円
A122: 119 | B122: 令和6年度佐賀少年鑑別所少年保安システム等更新整備契約 | C122: 支出負担行為担当官 佐賀少年鑑別所長 髙橋 智晃 （佐賀県佐賀市新生町1-10） | D122: 2024-05-23 | E122: 株式会社三和コンピュータ 東京都港区南麻布3-20-1 | F122: 8010401011967 | G122: 一般競争入札 | H122: 25520000 | I122: 23100000 | J122: =IFERROR(ROUNDDOWN(I122/H122,3),"-") -> 0.905
A123: 120 | B123: 令和6年度さいたま法務総合庁舎、さいたま地方検察庁支部及び管内区検察庁の植栽管理業務委託契約 | C123: 支出負担行為担当官 さいたま地方検察庁検事正 野下 智之 （埼玉県さいたま市浦和区高砂3-16-58） | D123: 2024-05-24 | E123: 株式会社南埼緑工 埼玉県さいたま市岩槻区大字釣上新田818 | F123: 2030001018086 | G123: 一般競争入札 | H123: 2046308 | I123: 935000 | J123: =IFERROR(ROUNDDOWN(I123/H123,3),"-") -> 0.456 | K123: 一括調達（関東地方更生保護委員会、関東公安調査局）
A124: 121 | B124: 令和6年度健康診断等業務委託契約 | C124: 支出負担行為担当官 奈良地方検察庁検事正 石川 さおり （奈良県奈良市登大路町1-1） | D124: 2024-05-24 | E124: 一般財団法人奈良市医師会 奈良県奈良市柏木町519-7 | F124: 2150005000763 | G124: 一般競争入札 | H124: 1430420 | I124: 1021900 | J124: =IFERROR(ROUNDDOWN(I124/H124,3),"-") -> 0.714 | K124: 単価契約 一括調達（近畿地方更生保護委員会）
A125: 122 | B125: 令和6年度埼玉県内矯正施設消耗品供給単価契約（4品目） | C125: 支出負担行為担当官 川越少年刑務所長 北川 統之 （埼玉県川越市南大塚6-40-1） | D125: 2024-05-24 | E125: 株式会社新星医薬商事 千葉県千葉市中央区都町8-5-27 | F125: 7040001003082 | G125: 一般競争入札 | H125: 1950300 | I125: 1716660 | J125: =IFERROR(ROUNDDOWN(I125/H125,3),"-") -> 0.88 | K125: 単価契約 一括調達（さいたま少年鑑別所）
A126: 123 | B126: 東京出入国在留管理局における各種様式用紙印刷業務契約 | C126: 支出負担行為担当官 東京出入国在留管理局長 宮尾 芳彰 （東京都港区港南5-5-30） | D126: 2024-05-24 | E126: 三陽メディア株式会社 千葉県千葉市中央区浜野町1397 | F126: 9040001053992 | G126: 一般競争入札 | H126: 1963500 | I126: 1760000 | J126: =IFERROR(ROUNDDOWN(I126/H126,3),"-") -> 0.896
A127: 124 | B127: 令和6年度青森空港旅客ターミナルビルにおけるイミグレーションアテンダント業務委託契約 | C127: 支出負担行為担当官 仙台出入国在留管理局長 藤田 小織 （宮城県仙台市宮城野区五輪1-3-20） | D127: 2024-05-24 | E127: 株式会社ORJ 大阪府大阪市北区芝田1-14-8 | F127: 9120001138331 | G127: 一般競争入札 | H127: 2024893 | I127: 1868400 | J127: =IFERROR(ROUNDDOWN(I127/H127,3),"-") -> 0.922 | K127: 単価契約
A128: 125 | B128: 令和6年度福岡矯正管区清掃業務派遣契約 | C128: 支出負担行為担当官 福岡矯正管区長 髭右近 竜紀 （福岡県福岡市東区若宮5-3-53） | D128: 2024-05-24 | E128: 株式会社リージェンシー 東京都新宿区西新宿7-5-2 | F128: 3011101049955 | G128: 一般競争入札 | H128: 2107380 | I128: 1998612 | J128: =IFERROR(ROUNDDOWN(I128/H128,3),"-") -> 0.948 | K128: 単価契約
A129: 126 | B129: 令和6年度名古屋刑務所護送用等車両（ライトバン）下取交換契約 | C129: 支出負担行為担当官 名古屋刑務所長 吉弘 基成 （愛知県みよし市ひばりヶ丘1-1） | D129: 2024-05-24 | E129: 株式会社愛知自動車総合サービス 愛知県碧南市新道町4-4 | F129: 7180301017181 | G129: 一般競争入札（総合評価落札方式） | H129: 2253830 | I129: 2073120 | J129: =IFERROR(ROUNDDOWN(I129/H129,3),"-") -> 0.919
A130: 127 | B130: 令和6年度山形刑務所介護福祉士実務者出張講座請負契約 | C130: 支出負担行為担当官 山形刑務所長 土屋 文男 （山形県山形市あけぼの2-1-1） | D130: 2024-05-24 | E130: 株式会社ウィルオブ・ワーク 東京都新宿区新宿3-1-24 | F130: 8011001061436 | G130: 一般競争入札 | H130: 2592700 | I130: 2079000 | J130: =IFERROR(ROUNDDOWN(I130/H130,3),"-") -> 0.801
A131: 128 | B131: 令和6年度埼玉県内矯正施設消耗品供給単価契約（4品目） | C131: 支出負担行為担当官 川越少年刑務所長 北川 統之 （埼玉県川越市南大塚6-40-1） | D131: 2024-05-24 | E131: コモン産業株式会社 埼玉県川越市岸町1-46-49 | F131: 7030001054721 | G131: 一般競争入札 | H131: 2728000 | I131: 2424400 | J131: =IFERROR(ROUNDDOWN(I131/H131,3),"-") -> 0.888 | K131: 単価契約 一括調達（さいたま少年鑑別所）
A132: 129 | B132: 令和6年度名古屋刑務所護送用等車両（ワゴン）下取交換契約 | C132: 支出負担行為担当官 名古屋刑務所長 吉弘 基成 （愛知県みよし市ひばりヶ丘1-1） | D132: 2024-05-24 | E132: 株式会社愛知自動車総合サービス 愛知県碧南市新道町4-4 | F132: 7180301017181 | G132: 一般競争入札（総合評価落札方式） | H132: 3949769 | I132: 2979669 | J132: =IFERROR(ROUNDDOWN(I132/H132,3),"-") -> 0.754
A133: 130 | B133: 令和6年度仙台少年鑑別所鑑別護送バス交換等契約 | C133: 支出負担行為担当官 仙台少年鑑別所長 清水 大輔 （宮城県仙台市若林区古城3-27-17） | D133: 2024-05-24 | E133: 日産プリンス宮城販売株式会社 宮城県仙台市宮城野区苦竹2-2-1 | F133: 9370001014078 | G133: 一般競争入札（総合評価落札方式） | H133: 4131283 | I133: 3391883 | J133: =IFERROR(ROUNDDOWN(I133/H133,3),"-") -> 0.821
A134: 131 | B134: 令和6年度埼玉県内矯正施設消耗品供給単価契約（63品目） | C134: 支出負担行為担当官 川越少年刑務所長 北川 統之 （埼玉県川越市南大塚6-40-1） | D134: 2024-05-24 | E134: 株式会社小平ケミカル 東京都東大和市向原1-5-11 | F134: 4012701009356 | G134: 一般競争入札 | H134: 12128901 | I134: 6796075 | J134: =IFERROR(ROUNDDOWN(I134/H134,3),"-") -> 0.56 | K134: 単価契約 一括調達（さいたま少年鑑別所）
A135: 132 | B135: 令和6年度埼玉県内矯正施設消耗品供給単価契約（111品目） | C135: 支出負担行為担当官 川越少年刑務所長 北川 統之 （埼玉県川越市南大塚6-40-1） | D135: 2024-05-24 | E135: 株式会社ハシモト 埼玉県川越市問屋町3-3 | F135: 3030001055384 | G135: 一般競争入札 | H135: 8755197 | I135: 7110444 | J135: =IFERROR(ROUNDDOWN(I135/H135,3),"-") -> 0.812 | K135: 単価契約 一括調達（さいたま少年鑑別所）
A136: 133 | B136: 令和6年度名古屋刑務所護送用等車両（マイクロバス）下取交換契約 | C136: 支出負担行為担当官 名古屋刑務所長 吉弘 基成 （愛知県みよし市ひばりヶ丘1-1） | D136: 2024-05-24 | E136: 株式会社愛知自動車総合サービス 愛知県碧南市新道町4-4 | F136: 7180301017181 | G136: 一般競争入札（総合評価落札方式） | H136: 11011554 | I136: 9989654 | J136: =IFERROR(ROUNDDOWN(I136/H136,3),"-") -> 0.907
A137: 134 | B137: 中央合同庁舎第6号館B棟直流電源装置蓄電池交換作業等業務の請負 一式 | C137: 支出負担行為担当官 法務省大臣官房会計課長 村松 秀樹 （東京都千代田区霞が関1-1-1） | D137: 2024-05-24 | E137: 株式会社ホマレ電池 東京都千代田区神田佐久間町3-21 | F137: 4010001029158 | G137: 一般競争入札 | H137: 35436341 | I137: 29150000 | J137: =IFERROR(ROUNDDOWN(I137/H137,3),"-") -> 0.822
A138: 135 | B138: 令和6年度京都地方法務局職員一般定期健康診断及び特別定期健康診断業務委託契約 | C138: 支出負担行為担当官 京都地方法務局長 戸井 琢也 （京都府京都市上京区荒神口通河原町東入上生洲町197） | D138: 2024-05-27 | E138: 一般財団法人京都予防医学センター 京都府京都市中京区西ノ京左馬寮町28 | F138: 5130005002973 | G138: 一般競争入札 | H138: 2248326 | I138: 1784750 | J138: =IFERROR(ROUNDDOWN(I138/H138,3),"-") -> 0.793 | K138: 単価契約
A139: 136 | B139: 令和6年度和泉学園集団寮エアコン更新契約 | C139: 支出負担行為担当官 和泉学園長 兼平 優 （大阪府阪南市貝掛1096） | D139: 2024-05-27 | E139: シューワ株式会社 大阪府堺市中区陶器北244-5 | F139: 1120101003418 | G139: 一般競争入札 | H139: 2692800 | I139: 2475000 | J139: =IFERROR(ROUNDDOWN(I139/H139,3),"-") -> 0.919
A140: 137 | B140: 令和6年度新潟少年学院除雪機（ホイールローダー）調達契約 | C140: 支出負担行為担当官 新潟少年学院長 伊藤 雅美 （新潟県長岡市御山町117-13） | D140: 2024-05-27 | E140: 有限会社中村農機店 新潟県長岡市旭町1-3-2 | F140: 7110002028674 | G140: 一般競争入札 | H140: 5170000 | I140: 4609000 | J140: =IFERROR(ROUNDDOWN(I140/H140,3),"-") -> 0.891 | K140: 単価契約
A141: 138 | B141: 令和6年度福岡刑務所A重油（6、7月分）供給契約 | C141: 支出負担行為担当官 福岡刑務所長 竹内 徹 （福岡県糟屋郡宇美町障子岳南6-1-1） | D141: 2024-05-27 | E141: 林兼石油株式会社 福岡県福岡市中央区渡辺通4-10-10 | F141: 1290001009738 | G141: 一般競争入札 | H141: 10656800 | I141: 10173856 | J141: =IFERROR(ROUNDDOWN(I141/H141,3),"-") -> 0.954 | K141: 単価契約
A142: 139 | B142: 外国人出入国情報システム更改に伴う日本人出帰国審査システムの改修等作業 一式 | C142: 支出負担行為担当官 出入国在留管理庁次長 丸山 秀治 （東京都千代田区霞が関1-1-1） | D142: 2024-05-27 | E142: 沖電気工業株式会社 東京都港区虎ノ門1-7-12 | F142: 7010401006126 | G142: 一般競争入札（総合評価落札方式） | H142: 397523403 | I142: 173140000 | J142: =IFERROR(ROUNDDOWN(I142/H142,3),"-") -> 0.435 | K142: 国庫債務負担行為 低入札価格調査実施
A143: 140 | B143: 松阪地方合同庁舎除草及び樹木剪定業務委託契約 | C143: 支出負担行為担当官 津地方法務局長 坂 佳恭 （三重県津市丸之内26-8） | D143: 2024-05-28 | E143: GONTAC（ゴンタック） 三重県津市船頭町津興3393-11 | F143: - | G143: 一般競争入札 | H143: 542823 | I143: 426286 | J143: =IFERROR(ROUNDDOWN(I143/H143,3),"-") -> 0.785 | K143: 共同調達（名古屋国税局、三重労働局） 予定価格総額 1,299,865円 契約金額総額 1,020,800円
A144: 141 | B144: 令和6年度松本少年刑務所職員健康診断委託契約 | C144: 支出負担行為担当官 松本少年刑務所長 中道 徹 （長野県松本市桐3-9-4） | D144: 2024-05-28 | E144: 一般社団法人メディカルチェック 長野県長野市大豆島1562 | F144: 6100005012875 | G144: 一般競争入札 | H144: 1230240 | I144: 1108140 | J144: =IFERROR(ROUNDDOWN(I144/H144,3),"-") -> 0.9 | K144: 単価契約
A145: 142 | B145: 空調用燃料（重油）供給契約 | C145: 支出負担行為担当官 岡山地方法務局長 横山 紫穂 （岡山県岡山市北区南方1-3-58） | D145: 2024-05-28 | E145: はらだエネルギー株式会社 岡山県岡山市南区妹尾539 | F145: 1260001005467 | G145: 一般競争入札 | H145: 1413720 | I145: 1184832 | J145: =IFERROR(ROUNDDOWN(I145/H145,3),"-") -> 0.838 | K145: 単価契約 共同調達（中国四国農政局） 予定価格総額 1,963,500円 契約金額総額 1,645,600円
A146: 143 | B146: 令和6年度山形刑務所第2四半期被収容者用食料精肉供給契約 | C146: 支出負担行為担当官 山形刑務所長 土屋 文男 （山形県山形市あけぼの2-1-1） | D146: 2024-05-28 | E146: 株式会社野川食肉食品センター 山形県天童市万代1-2 | F146: 1390001004539 | G146: 一般競争入札 | H146: 1911000 | I146: 1905000 | J146: =IFERROR(ROUNDDOWN(I146/H146,3),"-") -> 0.996 | K146: 単価契約
A147: 144 | B147: 令和6年度山形刑務所第2四半期被収容者用食料精肉供給契約 | C147: 支出負担行為担当官 山形刑務所長 土屋 文男 （山形県山形市あけぼの2-1-1） | D147: 2024-05-28 | E147: 株式会社野川食肉食品センター 山形県天童市万代1-2 | F147: 1390001004539 | G147: 一般競争入札 | H147: 2493000 | I147: 2365200 | J147: =IFERROR(ROUNDDOWN(I147/H147,3),"-") -> 0.948 | K147: 単価契約
A148: 145 | B148: 令和6年度旭川刑務所パネルソー供給契約 | C148: 支出負担行為担当官 旭川刑務所長 窪田 哲也 （北海道旭川市東鷹栖3-20-620） | D148: 2024-05-28 | E148: 株式会社アサヒ 北海道札幌市白石区中央3条5-7-36 | F148: 5430001000595 | G148: 一般競争入札 | H148: 4950000 | I148: 4180000 | J148: =IFERROR(ROUNDDOWN(I148/H148,3),"-") -> 0.844
A149: 146 | B149: 出入国管理及び難民認定法等の改正に伴う様式用紙等の翻訳業務 一式 | C149: 支出負担行為担当官 出入国在留管理庁次長 丸山 秀治 （東京都千代田区霞が関1-1-1） | D149: 2024-05-28 | E149: 株式会社SELC 神奈川県逗子市山の根2-11-1 | F149: 7021001047229 | G149: 一般競争入札 | H149: 7712080 | I149: 7240632 | J149: =IFERROR(ROUNDDOWN(I149/H149,3),"-") -> 0.938
A150: 147 | B150: 令和6年度健康診断業務の委託契約 一式 | C150: 支出負担行為担当官 法務省大臣官房会計課長 村松 秀樹 （東京都千代田区霞が関1-1-1） | D150: 2024-05-28 | E150: 公益財団法人愛世会 東京都板橋区加賀1-3-1 | F150: 4011405001520 | G150: 一般競争入札 | H150: 43520617 | I150: 42116437 | J150: =IFERROR(ROUNDDOWN(I150/H150,3),"-") -> 0.967 | K150: 単価契約 一括調達（最高検察庁、東京高等検察庁、東京地方検察庁、出入国在留管理庁、公安調査庁、東京保護観察所、東京出入国在留管理局）
A151: 148 | B151: 地図情報システムの更改に係る設計・開発及び移行等業務 一式 | C151: 支出負担行為担当官 法務省大臣官房会計課長 村松 秀樹 （東京都千代田区霞が関1-1-1） | D151: 2024-05-28 | E151: 株式会社NTTデータ 東京都江東区豊洲3-3-3 | F151: 6010601062093 | G151: 一般競争入札（総合評価落札方式） | H151: 3423189132 | I151: 3365524800 | J151: =IFERROR(ROUNDDOWN(I151/H151,3),"-") -> 0.983 | K151: 国庫債務負担行為
A152: 149 | B152: 令和6年度笠松刑務所等事務用品等供給単価契約（21品目） | C152: 支出負担行為担当官 笠松刑務所長 齋藤 晶絵 （岐阜県羽島郡笠松町中川町23） | D152: 2024-05-29 | E152: 千葉紙工株式会社 千葉県四街道市物井598-12 | F152: 2040001047340 | G152: 一般競争入札 | H152: 2003397 | I152: 1429478 | J152: =IFERROR(ROUNDDOWN(I152/H152,3),"-") -> 0.713 | K152: 単価契約 一括調達（岐阜刑務所、岐阜少年鑑別所）
A153: 150 | B153: 令和6年度笠松刑務所等事務用品等供給単価契約（17品目） | C153: 支出負担行為担当官 笠松刑務所長 齋藤 晶絵 （岐阜県羽島郡笠松町中川町23） | D153: 2024-05-29 | E153: 株式会社小平ケミカル 東京都東大和市向原1-5-11 | F153: 4012701009356 | G153: 一般競争入札 | H153: 2707423 | I153: 1565865 | J153: =IFERROR(ROUNDDOWN(I153/H153,3),"-") -> 0.578 | K153: 単価契約 一括調達（岐阜刑務所、岐阜少年鑑別所）
A154: 151 | B154: 令和6年度大分刑務所テレビ更新整備及びテレビ収集運搬リサイクル委託一式 | C154: 支出負担行為担当官 大分刑務所長 𫝆村 守 （大分県大分市畑中5-4-1） | D154: 2024-05-29 | E154: 平岡株式会社 大分県大分市岩田町2-4-12 | F154: 1320001000759 | G154: 一般競争入札 | H154: 2223147 | I154: 1741300 | J154: =IFERROR(ROUNDDOWN(I154/H154,3),"-") -> 0.783
A155: 152 | B155: 複合機供給契約及び保守契約 | C155: 支出負担行為担当官 山形地方法務局長 本間 与志雄 （山形県山形市緑町1-5-48） | D155: 2024-05-29 | E155: シャープ事務機山形販売株式会社 山形県山形市流通センター1-9-2 | F155: 4390001000849 | G155: 一般競争入札 | H155: 2275926 | I155: 1771528 | J155: =IFERROR(ROUNDDOWN(I155/H155,3),"-") -> 0.778 | K155: 保守料を含む。 本体価格合計 470,800円 保守料 1,300,728円
A156: 153 | B156: 令和6年度笠松刑務所等事務用品等供給単価契約（38品目） | C156: 支出負担行為担当官 笠松刑務所長 齋藤 晶絵 （岐阜県羽島郡笠松町中川町23） | D156: 2024-05-29 | E156: 株式会社喜文堂事務機 岐阜県岐阜市水海道3-22-14 | F156: 8200001001647 | G156: 一般競争入札 | H156: 2176180 | I156: 1853605 | J156: =IFERROR(ROUNDDOWN(I156/H156,3),"-") -> 0.851 | K156: 単価契約 一括調達（岐阜刑務所、岐阜少年鑑別所）
A157: 154 | B157: 令和6年度福岡刑務所職員健康診断業務等委託契約 | C157: 支出負担行為担当官 福岡刑務所長 竹内 徹 （福岡県糟屋郡宇美町障子岳南6-1-1） | D157: 2024-05-29 | E157: 一般財団法人医療情報健康財団 福岡県福岡市博多区店屋町4-15 | F157: 9290005013340 | G157: 一般競争入札 | H157: 2582030 | I157: 1981166 | J157: =IFERROR(ROUNDDOWN(I157/H157,3),"-") -> 0.767 | K157: 単価契約
A158: 155 | B158: 東京出入国在留管理局成田空港支局における自動車（小型車）1台交換購入契約 | C158: 支出負担行為担当官 東京出入国在留管理局長 宮尾 芳彰 （東京都港区港南5-5-30） | D158: 2024-05-29 | E158: 千葉日産自動車株式会社 千葉県千葉市中央区本千葉町9-21 | F158: 9040001008253 | G158: 一般競争入札（総合評価落札方式） | H158: 2206971 | I158: 2160966 | J158: =IFERROR(ROUNDDOWN(I158/H158,3),"-") -> 0.979
A159: 156 | B159: 東京出入国在留管理局成田空港支局における自動車（ワゴン）1台交換購入契約 | C159: 支出負担行為担当官 東京出入国在留管理局長 宮尾 芳彰 （東京都港区港南5-5-30） | D159: 2024-05-29 | E159: 株式会社日産サティオ埼玉北 埼玉県熊谷市三ヶ尻5445 | F159: 2030001085110 | G159: 一般競争入札 | H159: 3210741 | I159: 2830300 | J159: =IFERROR(ROUNDDOWN(I159/H159,3),"-") -> 0.881
A160: 157 | B160: 令和6年度前橋少年鑑別所庁舎2階エアコン設備整備（7台） | C160: 支出負担行為担当官 前橋少年鑑別所長 八代 満帆子 （群馬県前橋市岩神町4-5-7） | D160: 2024-05-29 | E160: TSPコンサルティング株式会社 東京都豊島区東池袋1-36-3 | F160: 9011101064379 | G160: 一般競争入札 | H160: 3806000 | I160: 3238400 | J160: =IFERROR(ROUNDDOWN(I160/H160,3),"-") -> 0.85
A161: 158 | B161: 六法全書等調達契約（517冊） | C161: 支出負担行為担当官 名古屋地方検察庁検事正 加藤 俊治 （愛知県名古屋市中区三の丸4-3-1） | D161: 2024-05-29 | E161: 株式会社丸善ジュンク堂書店 東京都中央区日本橋2-3-10 | F161: 9010001134416 | G161: 一般競争入札 | H161: 6097164 | I161: 5022435 | J161: =IFERROR(ROUNDDOWN(I161/H161,3),"-") -> 0.823 | K161: 一括調達（名古屋高等検察庁、津地方検察庁、岐阜地方検察庁、福井地方検察庁、金沢地方検察庁、富山地方検察庁）
A162: 159 | B162: 令和6年度埼玉県内所在の法務官署で使用するPPC再生紙供給契約 | C162: 支出負担行為担当官 さいたま地方検察庁検事正 野下 智之 （埼玉県さいたま市浦和区高砂3-16-58） | D162: 2024-05-29 | E162: 加賀ソルネット株式会社 東京都中央区八丁堀3-27-10 | F162: 1010001087332 | G162: 一般競争入札 | H162: 33271342 | I162: 29531027 | J162: =IFERROR(ROUNDDOWN(I162/H162,3),"-") -> 0.887 | K162: 単価契約 一括調達（さいたま地方法務局、東京矯正管区、川越少年刑務所、さいたま少年鑑別所、関東地方更生保護委員会）
A163: 160 | B163: 徳島地方合同庁舎植栽管理業務委託 | C163: 支出負担行為担当官 徳島地方法務局長 田中 和明 （徳島県徳島市徳島町城内6-6） | D163: 2024-05-30 | E163: 株式会社ナコム 大阪府大阪狭山市西山台3-1-15 | F163: 5120101026662 | G163: 一般競争入札 | H163: 682532 | I163: 453765 | J163: =IFERROR(ROUNDDOWN(I163/H163,3),"-") -> 0.664 | K163: 共同調達（四国行政評価支局、四国地方更生保護委員会、徳島労働局） 予定価格総額 1,581,767円 契約金額総額 1,051,600円
A164: 161 | B164: 令和6年度兵庫県内矯正施設医薬品等購入契約（18品目） | C164: 支出負担行為担当官 姫路少年刑務所長 國村 稔記 （兵庫県姫路市岩端町438） | D164: 2024-05-30 | E164: 宮野医療器株式会社 兵庫県神戸市中央区楠町5-4-8 | F164: 2140001011212 | G164: 一般競争入札 | H164: 2202220 | I164: 1430110 | J164: =IFERROR(ROUNDDOWN(I164/H164,3),"-") -> 0.649 | K164: 単価契約 一括調達（姫路少年刑務所、神戸刑務所、加古川刑務所、播磨社会復帰促進センター、神戸拘置所、加古川学園、神戸少年鑑別所）
A165: 162 | B165: 令和6年度大分刑務所臨床検査委託契約 | C165: 支出負担行為担当官 大分刑務所長 𫝆村 守 （大分県大分市畑中5-4-1） | D165: 2024-05-30 | E165: 株式会社リンテック 大分県大分市西大道2-5-8 | F165: 2290001017450 | G165: 一般競争入札 | H165: 1961140 | I165: 1870741 | J165: =IFERROR(ROUNDDOWN(I165/H165,3),"-") -> 0.953 | K165: 単価契約
A166: 163 | B166: 令和6年度川越少年刑務所環境整備（除草等）業務請負契約 | C166: 支出負担行為担当官 川越少年刑務所長 北川 統之 （埼玉県川越市南大塚6-40-1） | D166: 2024-05-30 | E166: 株式会社ものノふJAPAN 茨城県結城市新福寺1-11-6 | F166: 1050001045848 | G166: 一般競争入札 | H166: 2904220 | I166: 1911800 | J166: =IFERROR(ROUNDDOWN(I166/H166,3),"-") -> 0.658
A167: 164 | B167: 令和6年度兵庫県内矯正施設医薬品等購入契約（4品目） | C167: 支出負担行為担当官 姫路少年刑務所長 國村 稔記 （兵庫県姫路市岩端町438） | D167: 2024-05-30 | E167: 関西医療株式会社 兵庫県加古川市加古川町備後394 | F167: 2140001042827 | G167: 一般競争入札 | H167: 2684440 | I167: 2234620 | J167: =IFERROR(ROUNDDOWN(I167/H167,3),"-") -> 0.832 | K167: 単価契約 一括調達（姫路少年刑務所、神戸刑務所、加古川刑務所、播磨社会復帰促進センター、神戸拘置所、加古川学園、神戸少年鑑別所）
A168: 165 | B168: 松江法務総合庁舎エレベーター保守業務契約 | C168: 支出負担行為担当官 松江地方検察庁検事正 山中 一弘 （島根県松江市母衣町50） | D168: 2024-05-30 | E168: 三精テクノロジーズ株式会社広島営業所 広島県広島市中区紙屋町1-3-2 | F168: 3120901006634 | G168: 一般競争入札 | H168: 2750000 | I168: 2442000 | J168: =IFERROR(ROUNDDOWN(I168/H168,3),"-") -> 0.888 | K168: 一括調達（松江地方法務局） 予定価格総額 2,750,000円 契約金額総額 2,442,000円
A169: 166 | B169: 令和6年度パブリック・スピーキング研修実施業務の委託契約 一式 | C169: 支出負担行為担当官 法務省大臣官房会計課長 村松 秀樹 （東京都千代田区霞が関1-1-1） | D169: 2024-05-30 | E169: インターナショナルエジュケーションサービス株式会社 東京都渋谷区東2-22-14 | F169: 8011001002381 | G169: 一般競争入札 | H169: 3182256 | I169: 2850724 | J169: =IFERROR(ROUNDDOWN(I169/H169,3),"-") -> 0.895
A170: 167 | B170: 令和6年度埼玉県内矯正施設職員健康診断検査業務委任契約 | C170: 支出負担行為担当官 川越少年刑務所長 北川 統之 （埼玉県川越市南大塚6-40-1） | D170: 2024-05-30 | E170: 医療法人社団清心会 埼玉県狭山市大字下奥富1221 | F170: 5030005003957 | G170: 一般競争入札 | H170: 3018774 | I170: 2957196 | J170: =IFERROR(ROUNDDOWN(I170/H170,3),"-") -> 0.979 | K170: 単価契約 一括調達（さいたま少年鑑別所）
A171: 168 | B171: 令和6年度兵庫県内矯正施設医薬品等購入契約（6品目） | C171: 支出負担行為担当官 姫路少年刑務所長 國村 稔記 （兵庫県姫路市岩端町438） | D171: 2024-05-30 | E171: アルフレッサ株式会社 東京都千代田区内神田1-12-1 | F171: 3010001027880 | G171: 一般競争入札 | H171: 3063570 | I171: 3029800 | J171: =IFERROR(ROUNDDOWN(I171/H171,3),"-") -> 0.988 | K171: 単価契約 一括調達（姫路少年刑務所、神戸刑務所、加古川刑務所、播磨社会復帰促進センター、神戸拘置所、加古川学園、神戸少年鑑別所）
A172: 169 | B172: 令和6年度神戸刑務所自動車工場ブレーキ速度計複合試験機一式更新契約 | C172: 支出負担行為担当官 神戸刑務所長 二階堂 亮治 （兵庫県明石市大久保町森田120） | D172: 2024-05-30 | E172: 神姫産業株式会社 兵庫県神戸市兵庫区鍛冶屋町1-2-23 | F172: 4140001013215 | G172: 一般競争入札 | H172: 5023178 | I172: 4895000 | J172: =IFERROR(ROUNDDOWN(I172/H172,3),"-") -> 0.974
A173: 170 | B173: 長期相続登記等未了土地解消作業委託（登記名義人200人） | C173: 支出負担行為担当官 横浜地方法務局長 鍛冶 宗宏 （神奈川県横浜市中区北仲通5-57） | D173: 2024-05-30 | E173: 司法書士リーガルエイドしまね 島根県松江市国屋町592-3-1 | F173: - | G173: 一般競争入札 | H173: 6948137 | I173: 5777777 | J173: =IFERROR(ROUNDDOWN(I173/H173,3),"-") -> 0.831
A174: 171 | B174: 長期相続登記等未了土地解消作業（登記名義人200名分）の委託一式 | C174: 支出負担行為担当官 宇都宮地方法務局長 関口 正木 （栃木県宇都宮市小幡2-1-11） | D174: 2024-05-30 | E174: 公益社団法人埼玉県公共嘱託登記司法書士協会 埼玉県さいたま市浦和区高砂3-16-58 | F174: 4030005000501 | G174: 一般競争入札 | H174: 7027460 | I174: 5940000 | J174: =IFERROR(ROUNDDOWN(I174/H174,3),"-") -> 0.845
A175: 172 | B175: 令和6年度司法書士試験、土地家屋調査士試験及び簡裁訴訟代理等能力認定考査の試験問題、審査用答案等の搬送業務 一式 | C175: 支出負担行為担当官 法務省大臣官房会計課長 村松 秀樹 （東京都千代田区霞が関1-1-1） | D175: 2024-05-30 | E175: 日本通運株式会社 東京都千代田区神田和泉町2 | F175: 4010401022860 | G175: 一般競争入札 | H175: 7621944 | I175: 7480000 | J175: =IFERROR(ROUNDDOWN(I175/H175,3),"-") -> 0.981
A176: 173 | B176: 令和6年度広島刑務所職員健康診断業務委託契約 | C176: 支出負担行為担当官 広島刑務所長 宮本 良一 （広島県広島市中区吉島町13-114） | D176: 2024-05-30 | E176: 医療法人健康倶楽部 広島県広島市中区大手町3-7-5 | F176: 8240005001202 | G176: 一般競争入札 | H176: 9863150 | I176: 8200500 | J176: =IFERROR(ROUNDDOWN(I176/H176,3),"-") -> 0.831 | K176: 単価契約
A177: 174 | B177: 令和6年度断裁機供給契約（1台） | C177: 支出負担行為担当官 大分刑務所長 𫝆村 守 （大分県大分市畑中5-4-1） | D177: 2024-05-30 | E177: 西日本製本機材株式会社 福岡県福岡市東区箱崎ふ頭6-1-6 | F177: 2290001003681 | G177: 一般競争入札 | H177: 11434500 | I177: 11330000 | J177: =IFERROR(ROUNDDOWN(I177/H177,3),"-") -> 0.99
A178: 175 | B178: 令和6年度兵庫県内矯正施設医薬品等購入契約（90品目） | C178: 支出負担行為担当官 姫路少年刑務所長 國村 稔記 （兵庫県姫路市岩端町438） | D178: 2024-05-30 | E178: 株式会社メディセオ 東京都中央区京橋3-1-1 | F178: 5010001087238 | G178: 一般競争入札 | H178: 15850740 | I178: 15167540 | J178: =IFERROR(ROUNDDOWN(I178/H178,3),"-") -> 0.956 | K178: 単価契約 一括調達（姫路少年刑務所、神戸刑務所、加古川刑務所、播磨社会復帰促進センター、神戸拘置所、加古川学園、神戸少年鑑別所）
A179: 176 | B179: 令和6年度兵庫県内矯正施設医薬品等購入契約（14品目） | C179: 支出負担行為担当官 姫路少年刑務所長 國村 稔記 （兵庫県姫路市岩端町438） | D179: 2024-05-30 | E179: 株式会社スズケン 愛知県名古屋市東区東片端町8 | F179: 1180001017009 | G179: 一般競争入札 | H179: 27718560 | I179: 25195410 | J179: =IFERROR(ROUNDDOWN(I179/H179,3),"-") -> 0.908 | K179: 単価契約 一括調達（姫路少年刑務所、神戸刑務所、加古川刑務所、播磨社会復帰促進センター、神戸拘置所、加古川学園、神戸少年鑑別所）
A180: 177 | B180: 令和6年度兵庫県内矯正施設医薬品等購入契約（216品目） | C180: 支出負担行為担当官 姫路少年刑務所長 國村 稔記 （兵庫県姫路市岩端町438） | D180: 2024-05-30 | E180: 株式会社中央薬品 神奈川県横浜市泉区和泉町1191-4 | F180: 6020001029840 | G180: 一般競争入札 | H180: 36352990 | I180: 31772840 | J180: =IFERROR(ROUNDDOWN(I180/H180,3),"-") -> 0.874 | K180: 単価契約 一括調達（姫路少年刑務所、神戸刑務所、加古川刑務所、播磨社会復帰促進センター、神戸拘置所、加古川学園、神戸少年鑑別所）
A181: 178 | B181: 令和6年度医療衛生資材一式供給契約（5品目） | C181: 支出負担行為担当官 立川拘置所長 緒方 栄策 （東京都立川市泉町1156-11） | D181: 2024-05-31 | E181: 美保産業株式会社 東京都品川区西中延1-3-23 | F181: 5010701009482 | G181: 一般競争入札 | H181: 2206270 | I181: 1220194 | J181: =IFERROR(ROUNDDOWN(I181/H181,3),"-") -> 0.553 | K181: 単価契約
A182: 179 | B182: 令和6年度西日本成人矯正医療センター都市ガス供給契約 | C182: 支出負担行為担当官 西日本成人矯正医療センター長 市川 昌孝 （大阪府堺市堺区田出井町8-80） | D182: 2024-05-31 | E182: 関西電力株式会社 大阪府大阪市北区中之島3-6-16 | F182: 3120001059632 | G182: 一般競争入札 | H182: =ROUNDDOWN(2580766*1.1,0) -> 2838842 | I182: =ROUNDDOWN(2580766*1.1,0) -> 2838842 | J182: =IFERROR(ROUNDDOWN(I182/H182,3),"-") -> 1 | K182: 単価契約
A183: 180 | B183: 神戸地方検察庁柏原支部庁用自動車1台の賃貸借契約 | C183: 支出負担行為担当官 神戸地方検察庁検事正 山口 英幸 （兵庫県神戸市中央区橘通1-4-1） | D183: 2024-05-31 | E183: 株式会社トヨタレンタリース兵庫 兵庫県神戸市長田区北町2-5 | F183: 1140001016534 | G183: 一般競争入札（総合評価落札方式） | H183: 3207204 | I183: 2955876 | J183: =IFERROR(ROUNDDOWN(I183/H183,3),"-") -> 0.921 | K183: 再度公告入札
A184: 181 | B184: 令和6年度函館少年刑務所事務用品等供給契約（23品目） | C184: 支出負担行為担当官 函館少年刑務所長 渡邊 真也 （北海道函館市金堀町6-11） | D184: 2024-05-31 | E184: 株式会社石田文具 北海道函館市鍛冶1-39-11 | F184: 8440001000121 | G184: 一般競争入札 | H184: 3683180 | I184: 3491575 | J184: =IFERROR(ROUNDDOWN(I184/H184,3),"-") -> 0.947 | K184: 単価契約
A185: 182 | B185: 神戸地方検察庁姫路支部庁用自動車1台の賃貸借契約 | C185: 支出負担行為担当官 神戸地方検察庁検事正 山口 英幸 （兵庫県神戸市中央区橘通1-4-1） | D185: 2024-05-31 | E185: 株式会社トヨタレンタリース兵庫 兵庫県神戸市長田区北町2-5 | F185: 1140001016534 | G185: 一般競争入札（総合評価落札方式） | H185: 4111800 | I185: 4010160 | J185: =IFERROR(ROUNDDOWN(I185/H185,3),"-") -> 0.975 | K185: 再度公告入札
A186: 183 | B186: 長期相続登記等未了土地解消作業委託契約（登記名義人200名分） | C186: 支出負担行為担当官代理 松山地方法務局次長 杉本 美奈 （愛媛県松山市宮田町188-6） | D186: 2024-05-31 | E186: 一般社団法人大阪公共嘱託登記司法書士協会 大阪府大阪市中央区和泉町1-1-6 | F186: 4120005003239 | G186: 一般競争入札 | H186: 7226604 | I186: 5830000 | J186: =IFERROR(ROUNDDOWN(I186/H186,3),"-") -> 0.806
A187: 184 | B187: 長期相続登記等未了土地解消作業（登記名義人200名分）の委託一式 | C187: 支出負担行為担当官 福島地方法務局長 小松 淳也 （福島県福島市霞町1-46） | D187: 2024-05-31 | E187: 一般社団法人福島県公共嘱託登記司法書士協会 福島県福島市中町7-17 | F187: 5380005010407 | G187: 一般競争入札 | H187: 7226604 | I187: 6006000 | J187: =IFERROR(ROUNDDOWN(I187/H187,3),"-") -> 0.831
A188: 185 | B188: 長期相続登記等未了土地解消作業委託（登記名義人200人） | C188: 支出負担行為担当官 山口地方法務局長 中島 仁志 （山口県山口市中河原町6-16） | D188: 2024-05-31 | E188: ヒューマンポート司法書士法人 東京都北区赤羽2-62-3 共同受託者9名については、個人情報につき非公表 | F188: 3011505002527 | G188: 一般競争入札 | H188: 7096217 | I188: 6159998 | J188: =IFERROR(ROUNDDOWN(I188/H188,3),"-") -> 0.868
A189: 186 | B189: 令和6年度東京拘置所他矯正施設被収容者用靴の供給一式（9,720足） | C189: 支出負担行為担当官 東京拘置所長 柴﨑 正文 （東京都葛飾区小菅1-35-1） | D189: 2024-05-31 | E189: 株式会社廣瀬商会 東京都中央区日本橋3-1-17 | F189: 1010001054927 | G189: 一般競争入札 | H189: 11846736 | I189: 10125324 | J189: =IFERROR(ROUNDDOWN(I189/H189,3),"-") -> 0.854
A190: 187 | B190: 外国人出入国情報システム更改に伴う旅券読取アプリケーション（AT10K用）の検証・対応作業等 一式 | C190: 支出負担行為担当官 出入国在留管理庁次長 丸山 秀治 （東京都千代田区霞が関1-1-1） | D190: 2024-05-31 | E190: HL株式会社 神奈川県川崎市川崎区東田町9-6 | F190: 9080101017084 | G190: 一般競争入札 | H190: 16533968 | I190: 11880000 | J190: =IFERROR(ROUNDDOWN(I190/H190,3),"-") -> 0.718 | K190: 国庫債務負担行為
A191: 188 | B191: 令和6年度東京拘置所他矯正施設被収容者用サンダルの供給一式（18,830足） | C191: 支出負担行為担当官 東京拘置所長 柴﨑 正文 （東京都葛飾区小菅1-35-1） | D191: 2024-05-31 | E191: 株式会社廣瀬商会 東京都中央区日本橋3-1-17 | F191: 1010001054927 | G191: 一般競争入札 | H191: 17233216 | I191: 14871934 | J191: =IFERROR(ROUNDDOWN(I191/H191,3),"-") -> 0.862
A192: 189 | B192: 外国人出入国情報システム更改に伴う旅券読取アプリケーション（XC-STR01J用）の検証・対応作業等 一式 | C192: 支出負担行為担当官 出入国在留管理庁次長 丸山 秀治 （東京都千代田区霞が関1-1-1） | D192: 2024-05-31 | E192: パナソニックコネクト株式会社 福岡県福岡市博多区美野島4-1-62 | F192: 3010001129215 | G192: 一般競争入札 | H192: 27798100 | I192: 27720000 | J192: =IFERROR(ROUNDDOWN(I192/H192,3),"-") -> 0.997 | K192: 国庫債務負担行為
A193: 190 | B193: 保護観察・医療観察処遇用自動車の賃貸借 一式 | C193: 支出負担行為担当官 法務省大臣官房会計課長 村松 秀樹 （東京都千代田区霞が関1-1-1） | D193: 2024-05-31 | E193: オリックス自動車株式会社 東京都港区芝3-22-8 | F193: 7010401056220 | G193: 一般競争入札（総合評価落札方式） | H193: 66191495 | I193: 53611360 | J193: =IFERROR(ROUNDDOWN(I193/H193,3),"-") -> 0.809 | K193: 国庫債務負担行為
A194: 191 | B194: 登記・供託オンライン申請システム（第四期システム）を構成するクラウドサービスの提供等に関する業務 一式 | C194: 支出負担行為担当官 法務省大臣官房会計課長 村松 秀樹 （東京都千代田区霞が関1-1-1） | D194: 2024-05-31 | E194: 東京センチュリー株式会社 東京都千代田区神田練塀町3 | F194: 6010401015821 | G194: 一般競争入札（総合評価落札方式） | H194: 4944495270 | I194: 4717240000 | J194: =IFERROR(ROUNDDOWN(I194/H194,3),"-") -> 0.954 | K194: 国庫債務負担行為
A195: 192 | B195: 刑事手続のIT化に係る設計・開発等業務 一式 | C195: 支出負担行為担当官 法務省大臣官房会計課長 村松 秀樹 （東京都千代田区霞が関1-1-1） | D195: 2024-05-31 | E195: 日本電気株式会社 東京都港区芝5-7-1 | F195: 7010401022916 | G195: 一般競争入札（総合評価落札方式） | H195: 7493407320 | I195: 6937700000 | J195: =IFERROR(ROUNDDOWN(I195/H195,3),"-") -> 0.925 | K195: 国庫債務負担行為
